Workbook

Sheet Eingabe
C2: Dimensionierung und Wirtschaftlichkeit einer PV-Anlage | L2: 2016-09-26 | M2: Version 1.1
C3: Allgemeine Erläuterungen
C5: 123 | D5: Eingabefeld - unbeding ausfüllen | I5: Dieses Berechnungstool dimensioniert PV Anlagen in Kombination mit Wärmepumpen. Auf Basis wirtschaftlicher Überlegungen wird der Eigenverbrauch optimiert. Die empfohlene Anlagengröße [kWp] kann manuell variiert werden, und somit auch die Wirtschaftlichkeit von größeren Anlagen dargestellt werden.
C6: 123 | D6: vorgeschlagener Wert, kann manuell überschrieben werden
C7: 123 | D7: Ergebnis
C9: Standortbezogene Daten
C11: Postleitzahl: | D11: 1130 | F11: Position der Anlage | G11: Gebäudeintegriert | N11: Einstrahlung (horizontale Fläche): | O11: =Wetterdaten!L5 -> 1084 | P11: kWh/m²a
C12: Ort des Gebäudes: | D12: ='PLZ-Zuordnung'!J5 -> Wien | N12: Einstrahlung nach Angabe der Ausrichtung: | O12: =Ausrichtung!H51 -> 1275.294118 | P12: kWh/m²a
C14: Ausrichtung: | F14: Die Angabe der Ausrichtung der Anlage erfolgt von Osten nach Westen von -90° bis +90° (zB.: -45° = SO) | I14: Aufstellung: | L14: Die Angabe zur Neigung der Anlage erfolgt von 0° bis 90° (z.B.: 90° = Fassadenanlage) | N14: Randbedingungen:
N15: Es kommt zu keiner Verschattung der Anlage!
N16: =IF(G11="Gebäudeintegriert","Die Anlage ist gebäudeintegriert!",IF(G11="Aufdach","Die Anlage ist hinterlüftet!","Es handelt sich um eine Freiflächenanlage!")) -> Die Anlage ist gebäudeintegriert!
F17: 0 | G17: ° | L17: 30 | M17: °
C19: Haushaltsbezogene Daten
F21: Anzahl der im Haushalt lebenden Personen | G21: 3 | K21: Betriebsweise Wärmepumpe* | L21: AUTO 24h | P21: kWh/a
F22: beheizte Bruttogeschoßfläche | G22: 140 | H22: m2 | K22: Wärmepumpe Arbeitszahl | L22: 3 | O22: Strom Heizung: | P22: =+'Näherungsrechnung per Formel'!F8 -> 2100
F23: Heizwärmebedarf | G23: 30 | H23: kWh/m2.a | K23: Umgang mit Energie / Heizgewohnheit** | L23: durchschnittlicher Haushalt | O23: Strom Warmwasser: | P23: ='Näherungsrechnung per Formel'!$F$6 -> 912.5
F24: Verbrauch Haushaltsstrom (exkl. Wärmepumpe) | G24: 4000 | H24: kWh/a | O24: Strom Haushalt: | P24: =+G24 -> 4000
J25: *AUTO= Werkseinstellung *WP-Tarifoptimiert= Sie haben einen eigenen Tarif (Zähler) für die Wärmepumpe "Nachtstrom" *Eigenverbrauch optimiert= Regelungseinstellungen wurden auf Tagbetrieb optimiert; Wärmepumpe ist in der Nacht gesperrt und darf nur bei Stromlieferung aus der PV Anlage arbeiten
J26: **Wie sparsam gehen Sie in Ihrem Haushalt mit Energie um? Insbesondere mit Heizenergie?
C27: Wirtschaftliche Bedingungen
C29: Investitionskosten: | F29: Spezifische Kosten für die ersten 3,5 kWp | G29: =+Berechnungen!F78 -> 2250 | H29: EUR/kWp | J29: Laufende Kosten: | M29: Tarif Strombezug | N29: 20 | O29: €cent/kWh
F30: Spezifische Kosten ab 3,5 kWp | G30: =+Berechnungen!F79 -> 2000 | H30: EUR/kWp | M30: Einspeisevergütung | N30: 7 | O30: €cent/kWh
L31: Wechselrichteraustausch in 25 Jahren: | M31: einmal | N31: 1000 | O31: €/Austausch
F32: Gesamtkosten der Anlage: | G32: =IF(G48>3.5,3.5*G29+(G48-3.5)*G30,G48*G29) -> 2700 | M32: Laufende Kosten (Wartung, Versicherung): | N32: 0.004 | O32: %
F33: Förderung: | M33: Ertragsminderung (Degradation) pro Jahr: | N33: 0.005 | O33: %
F34: Investitionskosten abzüglich Förderung: | G34: =G32-G33 -> 2700
J35: Entwicklung: | M35: Inflationsrate/Jahr: | N35: 0.02 | O35: %
F36: =IF(G36<100%,"Eigenkapitalquote / Zinsen Fremdkapital:","Eigenkapitalquote:") -> Eigenkapitalquote: | G36: 1 | H36: 0.035 | I36: =H37+1 -> 3 | M36: Strompreissteigerung/Jahr: | N36: 0.02 | O36: %
F37: =IF(G36<100%,"Kreditlaufzeit / Tilgungsfreie Jahre:","") ->  | G37: 10 | H37: 2 | I37: =G37-H37 -> 8 | M37: Kalkulationszinssatz: | N37: 0.02 | O37: %
C39: Technische Daten
C41: Moduldaten: | F41: Modulfläche: | G41: 1.64 | H41: m²/Modul | J41: Wechselrichterdaten: | M41: europ. Wirkungsgrad: | N41: 96 | O41: %
F42: Nennleistung: | G42: 0.24 | H42: kWp/Modul
F43: Modulwirkungsgrad (STC-Bedingungen): | G43: =(G42/G41)*100 -> 14.63414634 | H43: %
C45: Optimierung
F47: Vorschlag Größe PV-Anlage | G47: tatsächlich geplante Größe
F48: =+Berechnungen!F39 -> 1.2 | G48: =+I48+(J48-100)*0.1 -> 1.2 | H48: kWp | I48: =+F48 -> 1.2 | J48: 100
E49: Voraussichtliche Eigennutzung | F49: =+Berechnungen!F45 -> 0.8637630665 | G49: =+Berechnungen!G45 -> 0.8637630665 | H49: %
E50: durchschnittliche Stomkosten pro kWh | F50: =+Berechnungen!F55*100 -> 19.35036855 | G50: =+Berechnungen!G55*100 -> 19.35036855 | H50: cent/kWh | I50: durchschnittliche Kosten für den gesamten Strombedarf (Eigendeckung und Zukauf)
E51: Ersparnis Stromkosten in % | F51: =1-$F$50/$N$29 -> 0.0324815726 | G51: =1-$G$50/$N$29 -> 0.0324815726
C55: Zusammenfassung (tatsächlich geplante Größe)
C57: Größe der Anlage: | F57: Gesamtfläche: | G57: =G48/G42*G41 -> 8.2 | H57: m²
F58: Gesamtwirkungsgrad: | G58: =(G43*N41)/100 -> 14.04878049 | H58: %
F59: Systemnutzungsgrad: | G59: =IF(G11="Gebäudeintegriert",G58*0.81,IF(G11="Aufdach",G58*0.86,G58*0.87)) -> 11.3795122 | H59: %
F60: Anzahl der Module: | G60: =ROUND(G48/G42,0) -> 5 | H60: Module
C62: Energie: | F62: Spezifischer Energieertrag: | G62: =O12*(G57/G48)*(G59/100) -> 991.6687059 | H62: kWh/kWp | BI62: Eigennutzung | BJ62: =+Berechnungen!G45 -> 0.8637630665
F63: Energieertrag (1. Jahr): | G63: =G62*G48 -> 1190.002447 | H63: kWh/a | BI63: Einspeisung ins Netz | BJ63: =1-BJ62 -> 0.1362369335 | BK63: [%]
F64: Energieertrag nach 25 Jahren: | G64: =Berechnungen!S31 -> 28039.86846 | H64: kWh
C66: Kosten: | F66: Investitionskosten: | G66: =G34 -> 2700 | H66: €
F67: Mehreinnahmen nach 25 Jahren: | G67: =NPV(Eingabe!N$37,Berechnungen!AA6:AA30)+Berechnungen!AA5 -> 1368.383518 | H67: €
F68: Amortisationsdauer: | G68: =Berechnungen!AD31 -> 18 | H68: Jahre | BI68: Vergütung Einspeisung | BJ68: =+N30 -> 7
F69: Interner Zinsfuß: | G69: =IRR(Berechnungen!AB5:AB30) -> 0.03598104814 | BI69: Strompreis zugekaufter Strom | BJ69: =+N29 -> 20
F70: Stromgestehungskosten: | G70: =Berechnungen!Z32/Berechnungen!S31*100 -> 14.42919478 | H70: cent/kWh | BI70: Theoretischer Tarif durch Eigenverbrauch | BJ70: =+Berechnungen!G46 -> 14.42919478
C72: CO2: | F72: CO2-Einsparungen nach 25 Jahren: | G72: =ROUND(G64*Berechnungen!F84,0) -> 7851 | H72: kg CO2
D147: 1 | F147: Neigung: | G147: 0 | H147: Azimut: | I147: -90
D148: 2 | G148: 15 | I148: -75
D149: 3 | G149: 30 | I149: -60
D150: 4 | G150: 45 | I150: -45
D151: 5 | G151: 60 | I151: -30
D152: 6 | G152: 75 | I152: -15
D153: 7 | G153: 90 | I153: 0
D154: 8 | I154: 15
D155: 9 | I155: 30
D156: 10 | I156: 45
D157: 11 | I157: 60
D158: 12 | I158: 75
D159: 13 | I159: 90
D160: 14
D161: 15
C165: einmal | D165: Gebäudeintegriert | F165: Betriebsweise Wärmepumpe
C166: zweimal | D166: Aufdach | F166: WP-Tarifoptimiert (nachts)
C167: dreimal | D167: Freiland | F167: AUTO 24h
C168: viermal | F168: Eigenverbrauch Optimiert
F171: Heizgewohnheiten
F172: sparsamer Haushalt
F173: durchschnittlicher Haushalt
F174: legerer Haushalt
F176: Maximum | G176: =MAX(G179:G328) -> 1368.383518
F177: Empfohlen | G177: =INDEX(F179:F328,MATCH(G176,G179:G328,0)) -> 1.2
F178: =G48 -> 1.2 | G178: =G67 -> 1368.383518
F179: 0.1 | G179: -552.7602075
F180: 0.2 | G180: -332.48789
F181: 0.3 | G181: -112.2155725
F182: 0.4 | G182: 108.056745
F183: 0.5 | G183: 328.3290626
F184: 0.6 | G184: 548.6013801
F185: 0.7 | G185: 768.8736976
F186: 0.8 | G186: 989.1460152
F187: 0.9 | G187: 1209.418333
F188: 1 | G188: 1361.481695
F189: 1.1 | G189: 1366.98468
F190: 1.2 | G190: 1368.383518
F191: 1.3 | G191: 1366.181879
F192: 1.4 | G192: 1360.788139
F193: 1.5 | G193: 1352.538857
F194: 1.6 | G194: 1341.715305
F195: 1.7 | G195: 1328.555403
F196: 1.8 | G196: 1313.262536
F197: 1.9 | G197: 1296.012188
F198: 2 | G198: 1276.957025
F199: 2.1 | G199: 1256.230842
F200: 2.2 | G200: 1233.951679
F201: 2.3 | G201: 1210.224299
F202: 2.4 | G202: 1185.142192
F203: 2.5 | G203: 1158.789201
F204: 2.6 | G204: 1131.240863
F205: 2.7 | G205: 1102.565515
F206: 2.8 | G206: 1072.825222
F207: 2.9 | G207: 1042.07655
F208: 3 | G208: 1010.371233
F209: 3.1 | G209: 977.7567234
F210: 3.2 | G210: 944.2766765
F211: 3.3 | G211: 909.9713626
F212: 3.4 | G212: 874.8780226
F213: 3.5 | G213: 839.0311778
F214: 3.6 | G214: 829.913881
F215: 3.7 | G215: 820.1050114
F216: 3.8 | G216: 809.6324241
F217: 3.9 | G217: 798.5221527
F218: 4 | G218: 786.7985725
F219: 4.1 | G219: 774.4845441
F220: 4.2 | G220: 761.6015425
F221: 4.3 | G221: 748.1697714
F222: 4.4 | G222: 734.2082666
F223: 4.5 | G223: 719.7349881
F224: 4.6 | G224: 704.7669034
F225: 4.7 | G225: 689.3200625
F226: 4.8 | G226: 673.4096664
F227: 4.9 | G227: 657.050128
F228: 5 | G228: 640.2551285
F229: 5.1 | G229: 623.0376684
F230: 5.2 | G230: 605.410114
F231: 5.3 | G231: 587.3842396
F232: 5.4 | G232: 568.9712668
F233: 5.5 | G233: 550.1818999
F234: 5.6 | G234: 531.0263588
F235: 5.7 | G235: 511.5144091
F236: 5.8 | G236: 491.6553899
F237: 5.9 | G237: 471.4582396
F238: 6 | G238: 450.9315191
F239: 6.1 | G239: 430.0834342
F240: 6.2 | G240: 408.9218558
F241: 6.3 | G241: 387.4543385
F242: 6.4 | G242: 365.6881384
F243: 6.5 | G243: 343.6302291
F244: 6.6 | G244: 321.2873171
F245: 6.7 | G245: 298.6658557
F246: 6.8 | G246: 275.7720584
F247: 6.9 | G247: 252.6119111
F248: 7 | G248: 229.1911833
F249: 7.1 | G249: 205.5154394
F250: 7.2 | G250: 181.5900486
F251: 7.3 | G251: 157.4201941
F252: 7.4 | G252: 133.0108823
F253: 7.5 | G253: 108.366951
F254: 7.6 | G254: 83.49307724
F255: 7.7 | G255: 58.39378478
F256: 7.8 | G256: 33.07345087
F257: 7.9 | G257: 7.536312959
F258: 8 | G258: -18.2135252
F259: 8.1 | G259: -44.17208772
F260: 8.2 | G260: -70.33552103
F261: 8.3 | G261: -96.70008872
F262: 8.4 | G262: -123.2621666
F263: 8.5 | G263: -150.0182379
F264: 8.6 | G264: -176.9648893
F265: 8.7 | G265: -204.0988061
F266: 8.8 | G266: -231.4167686
F267: 8.9 | G267: -258.9156486
F268: 9 | G268: -286.5924053
F269: 9.1 | G269: -314.4440822
F270: 9.2 | G270: -342.4678037
F271: 9.3 | G271: -370.6607723
F272: 9.4 | G272: -399.0202654
F273: 9.5 | G273: -427.5436327
F274: 9.6 | G274: -456.2282934
F275: 9.7 | G275: -485.0717336
F276: 9.8 | G276: -514.0715044
F277: 9.9 | G277: -543.2252189
F278: 10 | G278: -572.5305504
F279: 10.1 | G279: -601.9852302
F280: 10.2 | G280: -631.5870458
F281: 10.3 | G281: -661.3338386
F282: 10.4 | G282: -691.2235022
F283: 10.5 | G283: -721.2539811
F284: 10.6 | G284: -751.4232682
F285: 10.7 | G285: -781.7294039
F286: 10.8 | G286: -812.170474
F287: 10.9 | G287: -842.7446089
F288: 11 | G288: -873.4499815
F289: 11.1 | G289: -904.2848061
F290: 11.2 | G290: -935.2473374
F291: 11.3 | G291: -966.3358688
F292: 11.4 | G292: -997.5487312
F293: 11.5 | G293: -1028.884292
F294: 11.6 | G294: -1060.340955
F295: 11.7 | G295: -1091.917157
F296: 11.8 | G296: -1123.611369
F297: 11.9 | G297: -1155.422094
F298: 12 | G298: -1187.347866
F299: 12.1 | G299: -1219.38725
... 29 more rows

Sheet Berechnungen (hidden)
A2: empfohlene Größe | Q2: gewählte Größe | V2: Erlös aus verkauftem, nicht selbst konsumiertem Strom
A3: Jahre | B3: Vergütung | C3: Energieertrag | D3: Energieerlös | E3: Ersparnis | F3: Erlös | G3: Ausgaben | H3: Tilgung | I3: Zinsen | J3: Tilg.+Zinsen | K3: Cash Flow | L3: Barwerte | M3: Kapitalwert | N3: Zeit | Q3: Jahre | R3: Vergütung | S3: Energieertrag | T3: Energieerlös | U3: Ersparnis | V3: Erlös | W3: Ausgaben | X3: Tilgung | Y3: Zinsen | Z3: Tilg.+Zinsen | AA3: Cash Flow | AB3: Barwerte | AC3: Kapitalwert | AD3: Zeit
B4: [€/kWh] | C4: [kWh] | D4: [€] | E4: EUR | F4: EUR | G4: [€] | H4: [€] | I4: [€] | J4: [€] | K4: [€] | L4: [€] | M4: [€] | R4: [€/kWh] | S4: [kWh] | T4: [€] | U4: EUR | V4: EUR | W4: [€] | X4: [€] | Y4: [€] | Z4: [€] | AA4: [€] | AB4: [€] | AC4: [€]
A5: 0 | G5: =F63*Eingabe!G36 -> 2700 | J5: =H5+I5 -> 0 | K5: =D5-G5-J5 -> -2700 | L5: =K5/(1+Eingabe!N$37)^A5 -> -2700 | M5: =L5 -> -2700 | N5: =IF(M5<0,O5,0) -> 1 | O5: 1 | Q5: 0 | W5: =Eingabe!G34*Eingabe!G36 -> 2700 | Z5: =X5+Y5 -> 0 | AA5: =T5-W5-Z5 -> -2700 | AB5: =AA5/(1+Eingabe!N$37)^Q5 -> -2700 | AC5: =AB5 -> -2700 | AD5: =IF(AC5<0,AE5,0) -> 1 | AE5: 1
A6: 1 | B6: =Eingabe!N$30/100*(1+Eingabe!N$36)^A5 -> 0.07 | C6: =Eingabe!$G$63/$F$38*$F$39*1/(1+Eingabe!N$33)^A5 -> 1190.002447 | D6: =+E6+F6 -> 221.0361131 | E6: =Eingabe!$N$29/100*(1+Eingabe!$N$36)^A6*C6*Berechnungen!$F$45 -> 209.6875532 | F6: =B6*C6*(1-$F$45) -> 11.3485599 | G6: =$F$61*(Eingabe!N$32)*(1+(Eingabe!N$35))^Berechnungen!A5 -> 10.8 | H6: =+X6/$F$38*$F$39 -> 0 | I6: =+Y6/$F$38*$F$39 -> 0 | J6: 0 | K6: 210.2361131 | L6: =K6/(1+Eingabe!N$37)^A6 -> 206.1138364 | M6: =M5+L6 -> -2493.886164 | N6: 2 | O6: 2 | Q6: 1 | R6: =Eingabe!N$30/100*(1+Eingabe!N$36)^Q5 -> 0.07 | S6: =Eingabe!$G$63*1/(1+Eingabe!N$33)^Q5 -> 1190.002447 | T6: =+U6+V6 -> 221.0361131 | U6: =Eingabe!$N$29/100*(1+Eingabe!$N$36)^Q6*S6*$G$45 -> 209.6875532 | V6: =R6*S6*(1-$G$45) -> 11.3485599 | W6: =Eingabe!G$32*(Eingabe!N$32)*(1+(Eingabe!N$35))^Berechnungen!Q5 -> 10.8 | X6: =IF(AND(Eingabe!$I$36<=Berechnungen!Q6,(Eingabe!$I$36+Eingabe!$I$37)>Q6),(Eingabe!$G$34*(1-Eingabe!$G$36))/Eingabe!$I$37,0) -> 0 | Y6: =((Eingabe!$G$34*(1-Eingabe!$G$36))-SUM($X$5:X5))*Eingabe!$H$36 -> 0 | Z6: 0 | AA6: 210.2361131 | AB6: =AA6/(1+Eingabe!N$37)^Q6 -> 206.1138364 | AC6: =AC5+AB6 -> -2493.886164 | AD6: =IF(AC6<0,AE6,0) -> 2 | AE6: 2
A7: 2 | B7: =Eingabe!N$30/100*(1+Eingabe!N$36)^A6 -> 0.0714 | C7: =Eingabe!$G$63/$F$38*$F$39*1/(1+Eingabe!N$33)^A6 -> 1184.082037 | D7: 224.3351596 | E7: =Eingabe!$N$29/100*(1+Eingabe!$N$36)^A7*C7*Berechnungen!$F$45 -> 212.8172182 | F7: =B7*C7*(1-$F$45) -> 11.51794139 | G7: =$F$61*(Eingabe!N$32)*(1+(Eingabe!N$35))^Berechnungen!A6 -> 11.016 | H7: =+X7/$F$38*$F$39 -> 0 | I7: =+Y7/$F$38*$F$39 -> 0 | J7: 0 | K7: 213.3191596 | L7: =K7/(1+Eingabe!N$37)^A7 -> 205.0357166 | M7: -2288.850447 | N7: 3 | O7: 3 | Q7: 2 | R7: =Eingabe!N$30/100*(1+Eingabe!N$36)^Q6 -> 0.0714 | S7: =Eingabe!$G$63*1/(1+Eingabe!N$33)^Q6 -> 1184.082037 | T7: =+U7+V7 -> 224.3351596 | U7: =Eingabe!$N$29/100*(1+Eingabe!$N$36)^Q7*S7*$G$45 -> 212.8172182 | V7: =R7*S7*(1-$G$45) -> 11.51794139 | W7: =Eingabe!G$32*(Eingabe!N$32)*(1+(Eingabe!N$35))^Berechnungen!Q6 -> 11.016 | X7: =IF(AND(Eingabe!$I$36<=Berechnungen!Q7,(Eingabe!$I$36+Eingabe!$I$37)>Q7),(Eingabe!$G$34*(1-Eingabe!$G$36))/Eingabe!$I$37,0) -> 0 | Y7: =((Eingabe!$G$34*(1-Eingabe!$G$36))-SUM($X$5:X6))*Eingabe!$H$36 -> 0 | Z7: 0 | AA7: 213.3191596 | AB7: =AA7/(1+Eingabe!N$37)^Q7 -> 205.0357166 | AC7: =AC6+AB7 -> -2288.850447 | AD7: =IF(AC7<0,AE7,0) -> 3 | AE7: 3
A8: 3 | B8: =Eingabe!N$30/100*(1+Eingabe!N$36)^A7 -> 0.072828 | C8: =Eingabe!$G$63/$F$38*$F$39*1/(1+Eingabe!N$33)^A7 -> 1178.191081 | D8: 227.6834455 | E8: =Eingabe!$N$29/100*(1+Eingabe!$N$36)^A8*C8*Berechnungen!$F$45 -> 215.9935946 | F8: 11.68985096 | G8: =$F$61*(Eingabe!N$32)*(1+(Eingabe!N$35))^Berechnungen!A7 -> 11.23632 | H8: 0 | I8: 0 | J8: 0 | K8: 216.4471255 | L8: =K8/(1+Eingabe!N$37)^A8 -> 203.9629606 | M8: -2084.887486 | N8: 4 | O8: 4 | Q8: 3 | R8: =Eingabe!N$30/100*(1+Eingabe!N$36)^Q7 -> 0.072828 | S8: =Eingabe!$G$63*1/(1+Eingabe!N$33)^Q7 -> 1178.191081 | T8: 227.6834455 | U8: =Eingabe!$N$29/100*(1+Eingabe!$N$36)^Q8*S8*$G$45 -> 215.9935946 | V8: 11.68985096 | W8: =Eingabe!G$32*(Eingabe!N$32)*(1+(Eingabe!N$35))^Berechnungen!Q7 -> 11.23632 | X8: =IF(AND(Eingabe!$I$36<=Berechnungen!Q8,(Eingabe!$I$36+Eingabe!$I$37)>Q8),(Eingabe!$G$34*(1-Eingabe!$G$36))/Eingabe!$I$37,0) -> 0 | Y8: =((Eingabe!$G$34*(1-Eingabe!$G$36))-SUM($X$5:X7))*Eingabe!$H$36 -> 0 | Z8: 0 | AA8: 216.4471255 | AB8: =AA8/(1+Eingabe!N$37)^Q8 -> 203.9629606 | AC8: =AC7+AB8 -> -2084.887486 | AD8: 4 | AE8: 4
A9: 4 | B9: =Eingabe!N$30/100*(1+Eingabe!N$36)^A8 -> 0.07428456 | C9: =Eingabe!$G$63/$F$38*$F$39*1/(1+Eingabe!N$33)^A8 -> 1172.329434 | D9: 231.0817059 | E9: =Eingabe!$N$29/100*(1+Eingabe!$N$36)^A9*C9*Berechnungen!$F$45 -> 219.2173796 | F9: 11.86432635 | G9: =$F$61*(Eingabe!N$32)*(1+(Eingabe!N$35))^Berechnungen!A8 -> 11.4610464 | H9: 0 | I9: 0 | J9: 0 | K9: 219.6206595 | L9: =K9/(1+Eingabe!N$37)^A9 -> 202.8955418 | M9: -1881.991945 | N9: 5 | O9: 5 | Q9: 4 | R9: =Eingabe!N$30/100*(1+Eingabe!N$36)^Q8 -> 0.07428456 | S9: =Eingabe!$G$63*1/(1+Eingabe!N$33)^Q8 -> 1172.329434 | T9: 231.0817059 | U9: =Eingabe!$N$29/100*(1+Eingabe!$N$36)^Q9*S9*$G$45 -> 219.2173796 | V9: 11.86432635 | W9: =Eingabe!G$32*(Eingabe!N$32)*(1+(Eingabe!N$35))^Berechnungen!Q8 -> 11.4610464 | X9: =IF(AND(Eingabe!$I$36<=Berechnungen!Q9,(Eingabe!$I$36+Eingabe!$I$37)>Q9),(Eingabe!$G$34*(1-Eingabe!$G$36))/Eingabe!$I$37,0) -> 0 | Y9: =((Eingabe!$G$34*(1-Eingabe!$G$36))-SUM($X$5:X8))*Eingabe!$H$36 -> 0 | Z9: 0 | AA9: 219.6206595 | AB9: =AA9/(1+Eingabe!N$37)^Q9 -> 202.8955418 | AC9: =AC8+AB9 -> -1881.991945 | AD9: 5 | AE9: 5
A10: 5 | B10: =Eingabe!N$30/100*(1+Eingabe!N$36)^A9 -> 0.0757702512 | C10: =Eingabe!$G$63/$F$38*$F$39*1/(1+Eingabe!N$33)^A9 -> 1166.49695 | D10: 234.5306866 | E10: =Eingabe!$N$29/100*(1+Eingabe!$N$36)^A10*C10*Berechnungen!$F$45 -> 222.4892808 | F10: 12.04140585 | G10: =$F$61*(Eingabe!N$32)*(1+(Eingabe!N$35))^Berechnungen!A9 -> 11.69026733 | H10: 0 | I10: 0 | J10: 0 | K10: 222.8404193 | L10: =K10/(1+Eingabe!N$37)^A10 -> 201.8334334 | M10: -1680.158511 | N10: 6 | O10: 6 | Q10: 5 | R10: =Eingabe!N$30/100*(1+Eingabe!N$36)^Q9 -> 0.0757702512 | S10: =Eingabe!$G$63*1/(1+Eingabe!N$33)^Q9 -> 1166.49695 | T10: 234.5306866 | U10: =Eingabe!$N$29/100*(1+Eingabe!$N$36)^Q10*S10*$G$45 -> 222.4892808 | V10: 12.04140585 | W10: =Eingabe!G$32*(Eingabe!N$32)*(1+(Eingabe!N$35))^Berechnungen!Q9 -> 11.69026733 | X10: =IF(AND(Eingabe!$I$36<=Berechnungen!Q10,(Eingabe!$I$36+Eingabe!$I$37)>Q10),(Eingabe!$G$34*(1-Eingabe!$G$36))/Eingabe!$I$37,0) -> 0 | Y10: =((Eingabe!$G$34*(1-Eingabe!$G$36))-SUM($X$5:X9))*Eingabe!$H$36 -> 0 | Z10: 0 | AA10: 222.8404193 | AB10: =AA10/(1+Eingabe!N$37)^Q10 -> 201.8334334 | AC10: =AC9+AB10 -> -1680.158511 | AD10: 6 | AE10: 6
A11: 6 | B11: =Eingabe!N$30/100*(1+Eingabe!N$36)^A10 -> 0.07728565622 | C11: =Eingabe!$G$63/$F$38*$F$39*1/(1+Eingabe!N$33)^A10 -> 1160.693482 | D11: 238.0311446 | E11: =Eingabe!$N$29/100*(1+Eingabe!$N$36)^A11*C11*Berechnungen!$F$45 -> 225.8100163 | F11: 12.22112832 | G11: =$F$61*(Eingabe!N$32)*(1+(Eingabe!N$35))^Berechnungen!A10+IF(Eingabe!M31="viermal",Eingabe!N31,0) -> 11.92407267 | H11: 0 | I11: 0 | J11: 0 | K11: 226.1070719 | L11: =K11/(1+Eingabe!N$37)^A11 -> 200.7766092 | M11: -1479.381902 | N11: 7 | O11: 7 | Q11: 6 | R11: =Eingabe!N$30/100*(1+Eingabe!N$36)^Q10 -> 0.07728565622 | S11: =Eingabe!$G$63*1/(1+Eingabe!N$33)^Q10 -> 1160.693482 | T11: 238.0311446 | U11: =Eingabe!$N$29/100*(1+Eingabe!$N$36)^Q11*S11*$G$45 -> 225.8100163 | V11: 12.22112832 | W11: =Eingabe!G$32*(Eingabe!N$32)*(1+(Eingabe!N$35))^Berechnungen!Q10+IF(Eingabe!M31="viermal",Eingabe!N31,0) -> 11.92407267 | X11: =IF(AND(Eingabe!$I$36<=Berechnungen!Q11,(Eingabe!$I$36+Eingabe!$I$37)>Q11),(Eingabe!$G$34*(1-Eingabe!$G$36))/Eingabe!$I$37,0) -> 0 | Y11: =((Eingabe!$G$34*(1-Eingabe!$G$36))-SUM($X$5:X10))*Eingabe!$H$36 -> 0 | Z11: 0 | AA11: 226.1070719 | AB11: =AA11/(1+Eingabe!N$37)^Q11 -> 200.7766092 | AC11: -1479.381902 | AD11: 7 | AE11: 7
A12: 7 | B12: =Eingabe!N$30/100*(1+Eingabe!N$36)^A11 -> 0.07883136935 | C12: =Eingabe!$G$63/$F$38*$F$39*1/(1+Eingabe!N$33)^A11 -> 1154.918888 | D12: 241.5838483 | E12: =Eingabe!$N$29/100*(1+Eingabe!$N$36)^A12*C12*Berechnungen!$F$45 -> 229.180315 | F12: 12.40353322 | G12: =$F$61*(Eingabe!N$32)*(1+(Eingabe!N$35))^Berechnungen!A11+IF(Eingabe!M31="dreimal",Eingabe!N31,0) -> 12.16255413 | H12: 0 | I12: 0 | J12: 0 | K12: 229.4212941 | L12: =K12/(1+Eingabe!N$37)^A12 -> 199.7250428 | M12: -1279.656859 | N12: 8 | O12: 8 | Q12: 7 | R12: =Eingabe!N$30/100*(1+Eingabe!N$36)^Q11 -> 0.07883136935 | S12: =Eingabe!$G$63*1/(1+Eingabe!N$33)^Q11 -> 1154.918888 | T12: 241.5838483 | U12: =Eingabe!$N$29/100*(1+Eingabe!$N$36)^Q12*S12*$G$45 -> 229.180315 | V12: 12.40353322 | W12: =Eingabe!G$32*(Eingabe!N$32)*(1+(Eingabe!N$35))^Berechnungen!Q11+IF(Eingabe!M31="dreimal",Eingabe!N31,0) -> 12.16255413 | X12: =IF(AND(Eingabe!$I$36<=Berechnungen!Q12,(Eingabe!$I$36+Eingabe!$I$37)>Q12),(Eingabe!$G$34*(1-Eingabe!$G$36))/Eingabe!$I$37,0) -> 0 | Y12: =((Eingabe!$G$34*(1-Eingabe!$G$36))-SUM($X$5:X11))*Eingabe!$H$36 -> 0 | Z12: 0 | AA12: 229.4212941 | AB12: =AA12/(1+Eingabe!N$37)^Q12 -> 199.7250428 | AC12: -1279.656859 | AD12: 8 | AE12: 8
A13: 8 | B13: =Eingabe!N$30/100*(1+Eingabe!N$36)^A12 -> 0.08040799674 | C13: =Eingabe!$G$63/$F$38*$F$39*1/(1+Eingabe!N$33)^A12 -> 1149.173023 | D13: 245.1895773 | E13: =Eingabe!$N$29/100*(1+Eingabe!$N$36)^A13*C13*Berechnungen!$F$45 -> 232.6009168 | F13: 12.58866058 | G13: =$F$61*(Eingabe!N$32)*(1+(Eingabe!N$35))^Berechnungen!A12 -> 12.40580521 | H13: 0 | I13: 0 | J13: 0 | K13: 232.7837721 | L13: =K13/(1+Eingabe!N$37)^A13 -> 198.6787081 | M13: -1080.978151 | N13: 9 | O13: 9 | Q13: 8 | R13: =Eingabe!N$30/100*(1+Eingabe!N$36)^Q12 -> 0.08040799674 | S13: =Eingabe!$G$63*1/(1+Eingabe!N$33)^Q12 -> 1149.173023 | T13: 245.1895773 | U13: =Eingabe!$N$29/100*(1+Eingabe!$N$36)^Q13*S13*$G$45 -> 232.6009168 | V13: 12.58866058 | W13: =Eingabe!G$32*(Eingabe!N$32)*(1+(Eingabe!N$35))^Berechnungen!Q12 -> 12.40580521 | X13: =IF(AND(Eingabe!$I$36<=Berechnungen!Q13,(Eingabe!$I$36+Eingabe!$I$37)>Q13),(Eingabe!$G$34*(1-Eingabe!$G$36))/Eingabe!$I$37,0) -> 0 | Y13: =((Eingabe!$G$34*(1-Eingabe!$G$36))-SUM($X$5:X12))*Eingabe!$H$36 -> 0 | Z13: 0 | AA13: 232.7837721 | AB13: =AA13/(1+Eingabe!N$37)^Q13 -> 198.6787081 | AC13: -1080.978151 | AD13: 9 | AE13: 9
A14: 9 | B14: =Eingabe!N$30/100*(1+Eingabe!N$36)^A13 -> 0.08201615667 | C14: =Eingabe!$G$63/$F$38*$F$39*1/(1+Eingabe!N$33)^A13 -> 1143.455744 | D14: 248.8491233 | E14: =Eingabe!$N$29/100*(1+Eingabe!$N$36)^A14*C14*Berechnungen!$F$45 -> 236.0725722 | F14: 12.77655104 | G14: =$F$61*(Eingabe!N$32)*(1+(Eingabe!N$35))^Berechnungen!A13 -> 12.65392131 | H14: 0 | I14: 0 | J14: 0 | K14: 236.195202 | L14: =K14/(1+Eingabe!N$37)^A14 -> 197.637579 | M14: -883.3405721 | N14: 10 | O14: 10 | Q14: 9 | R14: =Eingabe!N$30/100*(1+Eingabe!N$36)^Q13 -> 0.08201615667 | S14: =Eingabe!$G$63*1/(1+Eingabe!N$33)^Q13 -> 1143.455744 | T14: 248.8491233 | U14: =Eingabe!$N$29/100*(1+Eingabe!$N$36)^Q14*S14*$G$45 -> 236.0725722 | V14: 12.77655104 | W14: =Eingabe!G$32*(Eingabe!N$32)*(1+(Eingabe!N$35))^Berechnungen!Q13 -> 12.65392131 | X14: =IF(AND(Eingabe!$I$36<=Berechnungen!Q14,(Eingabe!$I$36+Eingabe!$I$37)>Q14),(Eingabe!$G$34*(1-Eingabe!$G$36))/Eingabe!$I$37,0) -> 0 | Y14: =((Eingabe!$G$34*(1-Eingabe!$G$36))-SUM($X$5:X13))*Eingabe!$H$36 -> 0 | Z14: 0 | AA14: 236.195202 | AB14: =AA14/(1+Eingabe!N$37)^Q14 -> 197.637579 | AC14: -883.3405721 | AD14: 10 | AE14: 10
A15: 10 | B15: =Eingabe!N$30/100*(1+Eingabe!N$36)^A14 -> 0.0836564798 | C15: =Eingabe!$G$63/$F$38*$F$39*1/(1+Eingabe!N$33)^A14 -> 1137.766909 | D15: 252.5632893 | E15: =Eingabe!$N$29/100*(1+Eingabe!$N$36)^A15*C15*Berechnungen!$F$45 -> 239.5960435 | F15: 12.96724583 | G15: =$F$61*(Eingabe!N$32)*(1+(Eingabe!N$35))^Berechnungen!A14+IF(Eingabe!M31="zweimal",Eingabe!N31,0) -> 12.90699974 | H15: 0 | I15: 0 | J15: 0 | K15: 239.6562896 | L15: =K15/(1+Eingabe!N$37)^A15 -> 196.6016297 | M15: -686.7389424 | N15: 11 | O15: 11 | Q15: 10 | R15: =Eingabe!N$30/100*(1+Eingabe!N$36)^Q14 -> 0.0836564798 | S15: =Eingabe!$G$63*1/(1+Eingabe!N$33)^Q14 -> 1137.766909 | T15: 252.5632893 | U15: =Eingabe!$N$29/100*(1+Eingabe!$N$36)^Q15*S15*$G$45 -> 239.5960435 | V15: 12.96724583 | W15: =Eingabe!G$32*(Eingabe!N$32)*(1+(Eingabe!N$35))^Berechnungen!Q14+IF(Eingabe!M31="zweimal",Eingabe!N31,0) -> 12.90699974 | X15: =IF(AND(Eingabe!$I$36<=Berechnungen!Q15,(Eingabe!$I$36+Eingabe!$I$37)>Q15),(Eingabe!$G$34*(1-Eingabe!$G$36))/Eingabe!$I$37,0) -> 0 | Y15: =((Eingabe!$G$34*(1-Eingabe!$G$36))-SUM($X$5:X14))*Eingabe!$H$36 -> 0 | Z15: 0 | AA15: 239.6562896 | AB15: =AA15/(1+Eingabe!N$37)^Q15 -> 196.6016297 | AC15: -686.7389424 | AD15: 11 | AE15: 11
A16: 11 | B16: =Eingabe!N$30/100*(1+Eingabe!N$36)^A15 -> 0.0853296094 | C16: =Eingabe!$G$63/$F$38*$F$39*1/(1+Eingabe!N$33)^A15 -> 1132.106377 | D16: 256.3328906 | E16: =Eingabe!$N$29/100*(1+Eingabe!$N$36)^A16*C16*Berechnungen!$F$45 -> 243.1721038 | F16: 13.16078681 | G16: =$F$61*(Eingabe!N$32)*(1+(Eingabe!N$35))^Berechnungen!A15 -> 13.16513974 | H16: 0 | I16: 0 | J16: 0 | K16: 243.1677509 | L16: =K16/(1+Eingabe!N$37)^A16 -> 195.5708343 | M16: -491.168108 | N16: 12 | O16: 12 | Q16: 11 | R16: =Eingabe!N$30/100*(1+Eingabe!N$36)^Q15 -> 0.0853296094 | S16: =Eingabe!$G$63*1/(1+Eingabe!N$33)^Q15 -> 1132.106377 | T16: 256.3328906 | U16: =Eingabe!$N$29/100*(1+Eingabe!$N$36)^Q16*S16*$G$45 -> 243.1721038 | V16: 13.16078681 | W16: =Eingabe!G$32*(Eingabe!N$32)*(1+(Eingabe!N$35))^Berechnungen!Q15 -> 13.16513974 | X16: =IF(AND(Eingabe!$I$36<=Berechnungen!Q16,(Eingabe!$I$36+Eingabe!$I$37)>Q16),(Eingabe!$G$34*(1-Eingabe!$G$36))/Eingabe!$I$37,0) -> 0 | Y16: =((Eingabe!$G$34*(1-Eingabe!$G$36))-SUM($X$5:X15))*Eingabe!$H$36 -> 0 | Z16: 0 | AA16: 243.1677509 | AB16: =AA16/(1+Eingabe!N$37)^Q16 -> 195.5708343 | AC16: -491.168108 | AD16: 12 | AE16: 12
A17: 12 | B17: =Eingabe!N$30/100*(1+Eingabe!N$36)^A16 -> 0.08703620159 | C17: =Eingabe!$G$63/$F$38*$F$39*1/(1+Eingabe!N$33)^A16 -> 1126.474007 | D17: 260.1587547 | E17: =Eingabe!$N$29/100*(1+Eingabe!$N$36)^A17*C17*Berechnungen!$F$45 -> 246.8015382 | F17: 13.35721647 | G17: =$F$61*(Eingabe!N$32)*(1+(Eingabe!N$35))^Berechnungen!A16+IF(Eingabe!M31="viermal",Eingabe!N31,0) -> 13.42844253 | H17: 0 | I17: 0 | J17: 0 | K17: 246.7303121 | L17: =K17/(1+Eingabe!N$37)^A17 -> 194.5451673 | M17: -296.6229407 | N17: 13 | O17: 13 | Q17: 12 | R17: =Eingabe!N$30/100*(1+Eingabe!N$36)^Q16 -> 0.08703620159 | S17: =Eingabe!$G$63*1/(1+Eingabe!N$33)^Q16 -> 1126.474007 | T17: 260.1587547 | U17: =Eingabe!$N$29/100*(1+Eingabe!$N$36)^Q17*S17*$G$45 -> 246.8015382 | V17: 13.35721647 | W17: =Eingabe!G$32*(Eingabe!N$32)*(1+(Eingabe!N$35))^Berechnungen!Q16+IF(Eingabe!M31="viermal",Eingabe!N31,0) -> 13.42844253 | X17: =IF(AND(Eingabe!$I$36<=Berechnungen!Q17,(Eingabe!$I$36+Eingabe!$I$37)>Q17),(Eingabe!$G$34*(1-Eingabe!$G$36))/Eingabe!$I$37,0) -> 0 | Y17: =((Eingabe!$G$34*(1-Eingabe!$G$36))-SUM($X$5:X16))*Eingabe!$H$36 -> 0 | Z17: =X17+Y17 -> 0 | AA17: 246.7303121 | AB17: =AA17/(1+Eingabe!N$37)^Q17 -> 194.5451673 | AC17: -296.6229407 | AD17: 13 | AE17: 13
A18: 13 | B18: =Eingabe!N$30/100*(1+Eingabe!N$36)^A17 -> 0.08877692562 | C18: =Eingabe!$G$63/$F$38*$F$39*1/(1+Eingabe!N$33)^A17 -> 1120.869659 | D18: 264.0417212 | E18: =Eingabe!$N$29/100*(1+Eingabe!$N$36)^A18*C18*Berechnungen!$F$45 -> 250.4851432 | F18: 13.55657791 | G18: =$F$61*(Eingabe!N$32)*(1+(Eingabe!N$35))^Berechnungen!A17+IF(Eingabe!M31="einmal",Eingabe!N31,0) -> 1013.697011 | H18: 0 | I18: 0 | J18: 0 | K18: -749.6552902 | L18: =K18/(1+Eingabe!N$37)^A18 -> -579.5079219 | M18: -876.1308627 | N18: 14 | O18: 14 | Q18: 13 | R18: =Eingabe!N$30/100*(1+Eingabe!N$36)^Q17 -> 0.08877692562 | S18: =Eingabe!$G$63*1/(1+Eingabe!N$33)^Q17 -> 1120.869659 | T18: 264.0417212 | U18: =Eingabe!$N$29/100*(1+Eingabe!$N$36)^Q18*S18*$G$45 -> 250.4851432 | V18: 13.55657791 | W18: =Eingabe!G$32*(Eingabe!N$32)*(1+(Eingabe!N$35))^Berechnungen!Q17+IF(Eingabe!M31="einmal",Eingabe!N31,0) -> 1013.697011 | X18: =IF(AND(Eingabe!$I$36<=Berechnungen!Q18,(Eingabe!$I$36+Eingabe!$I$37)>Q18),(Eingabe!$G$34*(1-Eingabe!$G$36))/Eingabe!$I$37,0) -> 0 | Y18: =((Eingabe!$G$34*(1-Eingabe!$G$36))-SUM($X$5:X17))*Eingabe!$H$36 -> 0 | Z18: 0 | AA18: -749.6552902 | AB18: =AA18/(1+Eingabe!N$37)^Q18 -> -579.5079219 | AC18: -876.1308627 | AD18: 14 | AE18: 14
A19: 14 | B19: =Eingabe!N$30/100*(1+Eingabe!N$36)^A18 -> 0.09055246413 | C19: =Eingabe!$G$63/$F$38*$F$39*1/(1+Eingabe!N$33)^A18 -> 1115.293193 | D19: 267.9826424 | E19: =Eingabe!$N$29/100*(1+Eingabe!$N$36)^A19*C19*Berechnungen!$F$45 -> 254.2237275 | F19: 13.75891489 | G19: =$F$61*(Eingabe!N$32)*(1+(Eingabe!N$35))^Berechnungen!A18+IF(Eingabe!M31="dreimal",Eingabe!N31,0) -> 13.97095161 | H19: 0 | I19: 0 | J19: 0 | K19: 254.0116908 | L19: =K19/(1+Eingabe!N$37)^A19 -> 192.5091164 | M19: -683.6217463 | N19: 15 | O19: 15 | Q19: 14 | R19: =Eingabe!N$30/100*(1+Eingabe!N$36)^Q18 -> 0.09055246413 | S19: =Eingabe!$G$63*1/(1+Eingabe!N$33)^Q18 -> 1115.293193 | T19: 267.9826424 | U19: =Eingabe!$N$29/100*(1+Eingabe!$N$36)^Q19*S19*$G$45 -> 254.2237275 | V19: 13.75891489 | W19: =Eingabe!G$32*(Eingabe!N$32)*(1+(Eingabe!N$35))^Berechnungen!Q18+IF(Eingabe!M31="dreimal",Eingabe!N31,0) -> 13.97095161 | X19: =IF(AND(Eingabe!$I$36<=Berechnungen!Q19,(Eingabe!$I$36+Eingabe!$I$37)>Q19),(Eingabe!$G$34*(1-Eingabe!$G$36))/Eingabe!$I$37,0) -> 0 | Y19: =((Eingabe!$G$34*(1-Eingabe!$G$36))-SUM($X$5:X18))*Eingabe!$H$36 -> 0 | Z19: 0 | AA19: 254.0116908 | AB19: =AA19/(1+Eingabe!N$37)^Q19 -> 192.5091164 | AC19: -683.6217463 | AD19: 15 | AE19: 15
A20: 15 | B20: =Eingabe!N$30/100*(1+Eingabe!N$36)^A19 -> 0.09236351341 | C20: =Eingabe!$G$63/$F$38*$F$39*1/(1+Eingabe!N$33)^A19 -> 1109.744471 | D20: 271.9823833 | E20: =Eingabe!$N$29/100*(1+Eingabe!$N$36)^A20*C20*Berechnungen!$F$45 -> 258.0181115 | F20: 13.96427183 | G20: =$F$61*(Eingabe!N$32)*(1+(Eingabe!N$35))^Berechnungen!A19 -> 14.25037064 | H20: 0 | I20: 0 | J20: 0 | K20: 257.7320127 | L20: =K20/(1+Eingabe!N$37)^A20 -> 191.4986818 | M20: -492.1230645 | N20: 16 | O20: 16 | Q20: 15 | R20: =Eingabe!N$30/100*(1+Eingabe!N$36)^Q19 -> 0.09236351341 | S20: =Eingabe!$G$63*1/(1+Eingabe!N$33)^Q19 -> 1109.744471 | T20: 271.9823833 | U20: =Eingabe!$N$29/100*(1+Eingabe!$N$36)^Q20*S20*$G$45 -> 258.0181115 | V20: 13.96427183 | W20: =Eingabe!G$32*(Eingabe!N$32)*(1+(Eingabe!N$35))^Berechnungen!Q19 -> 14.25037064 | X20: =IF(AND(Eingabe!$I$36<=Berechnungen!Q20,(Eingabe!$I$36+Eingabe!$I$37)>Q20),(Eingabe!$G$34*(1-Eingabe!$G$36))/Eingabe!$I$37,0) -> 0 | Y20: =((Eingabe!$G$34*(1-Eingabe!$G$36))-SUM($X$5:X19))*Eingabe!$H$36 -> 0 | Z20: 0 | AA20: 257.7320127 | AB20: =AA20/(1+Eingabe!N$37)^Q20 -> 191.4986818 | AC20: -492.1230645 | AD20: 16 | AE20: 16
A21: 16 | B21: =Eingabe!N$30/100*(1+Eingabe!N$36)^A20 -> 0.09421078368 | C21: =Eingabe!$G$63/$F$38*$F$39*1/(1+Eingabe!N$33)^A20 -> 1104.223354 | D21: 276.0418219 | E21: =Eingabe!$N$29/100*(1+Eingabe!$N$36)^A21*C21*Berechnungen!$F$45 -> 261.8691281 | F21: 14.1726938 | G21: =$F$61*(Eingabe!N$32)*(1+(Eingabe!N$35))^Berechnungen!A20 -> 14.53537805 | H21: 0 | I21: 0 | J21: 0 | K21: 261.5064438 | L21: =K21/(1+Eingabe!N$37)^A21 -> 190.4932742 | M21: -301.6297902 | N21: 17 | O21: 17 | Q21: 16 | R21: =Eingabe!N$30/100*(1+Eingabe!N$36)^Q20 -> 0.09421078368 | S21: =Eingabe!$G$63*1/(1+Eingabe!N$33)^Q20 -> 1104.223354 | T21: 276.0418219 | U21: =Eingabe!$N$29/100*(1+Eingabe!$N$36)^Q21*S21*$G$45 -> 261.8691281 | V21: 14.1726938 | W21: =Eingabe!G$32*(Eingabe!N$32)*(1+(Eingabe!N$35))^Berechnungen!Q20 -> 14.53537805 | X21: =IF(AND(Eingabe!$I$36<=Berechnungen!Q21,(Eingabe!$I$36+Eingabe!$I$37)>Q21),(Eingabe!$G$34*(1-Eingabe!$G$36))/Eingabe!$I$37,0) -> 0 | Y21: =((Eingabe!$G$34*(1-Eingabe!$G$36))-SUM($X$5:X20))*Eingabe!$H$36 -> 0 | Z21: 0 | AA21: 261.5064438 | AB21: =AA21/(1+Eingabe!N$37)^Q21 -> 190.4932742 | AC21: -301.6297902 | AD21: 17 | AE21: 17
A22: 17 | B22: =Eingabe!N$30/100*(1+Eingabe!N$36)^A21 -> 0.09609499936 | C22: =Eingabe!$G$63/$F$38*$F$39*1/(1+Eingabe!N$33)^A21 -> 1098.729705 | D22: 280.161849 | E22: =Eingabe!$N$29/100*(1+Eingabe!$N$36)^A22*C22*Berechnungen!$F$45 -> 265.7776225 | F22: 14.38422654 | G22: =$F$61*(Eingabe!N$32)*(1+(Eingabe!N$35))^Berechnungen!A21 -> 14.82608561 | H22: 0 | I22: 0 | J22: 0 | K22: 265.3357634 | L22: =K22/(1+Eingabe!N$37)^A22 -> 189.4928687 | M22: -112.1369215 | N22: 18 | O22: 18 | Q22: 17 | R22: =Eingabe!N$30/100*(1+Eingabe!N$36)^Q21 -> 0.09609499936 | S22: =Eingabe!$G$63*1/(1+Eingabe!N$33)^Q21 -> 1098.729705 | T22: 280.161849 | U22: =Eingabe!$N$29/100*(1+Eingabe!$N$36)^Q22*S22*$G$45 -> 265.7776225 | V22: 14.38422654 | W22: =Eingabe!G$32*(Eingabe!N$32)*(1+(Eingabe!N$35))^Berechnungen!Q21 -> 14.82608561 | X22: =IF(AND(Eingabe!$I$36<=Berechnungen!Q22,(Eingabe!$I$36+Eingabe!$I$37)>Q22),(Eingabe!$G$34*(1-Eingabe!$G$36))/Eingabe!$I$37,0) -> 0 | Y22: =((Eingabe!$G$34*(1-Eingabe!$G$36))-SUM($X$5:X21))*Eingabe!$H$36 -> 0 | Z22: 0 | AA22: 265.3357634 | AB22: =AA22/(1+Eingabe!N$37)^Q22 -> 189.4928687 | AC22: -112.1369215 | AD22: 18 | AE22: 18
A23: 18 | B23: =Eingabe!N$30/100*(1+Eingabe!N$36)^A22 -> 0.09801689934 | C23: =Eingabe!$G$63/$F$38*$F$39*1/(1+Eingabe!N$33)^A22 -> 1093.263389 | D23: 284.3433692 | E23: =Eingabe!$N$29/100*(1+Eingabe!$N$36)^A23*C23*Berechnungen!$F$45 -> 269.7444527 | F23: 14.59891649 | G23: =$F$61*(Eingabe!N$32)*(1+(Eingabe!N$35))^Berechnungen!A22+IF(Eingabe!M31="viermal",Eingabe!N31,0) -> 15.12260733 | H23: 0 | I23: 0 | J23: 0 | K23: 269.2207619 | L23: =K23/(1+Eingabe!N$37)^A23 -> 188.4974403 | M23: 76.36051884 | N23: 0 | O23: 19 | Q23: 18 | R23: =Eingabe!N$30/100*(1+Eingabe!N$36)^Q22 -> 0.09801689934 | S23: =Eingabe!$G$63*1/(1+Eingabe!N$33)^Q22 -> 1093.263389 | T23: 284.3433692 | U23: =Eingabe!$N$29/100*(1+Eingabe!$N$36)^Q23*S23*$G$45 -> 269.7444527 | V23: 14.59891649 | W23: =Eingabe!G$32*(Eingabe!N$32)*(1+(Eingabe!N$35))^Berechnungen!Q22+IF(Eingabe!M31="viermal",Eingabe!N31,0) -> 15.12260733 | X23: =IF(AND(Eingabe!$I$36<=Berechnungen!Q23,(Eingabe!$I$36+Eingabe!$I$37)>Q23),(Eingabe!$G$34*(1-Eingabe!$G$36))/Eingabe!$I$37,0) -> 0 | Y23: =((Eingabe!$G$34*(1-Eingabe!$G$36))-SUM($X$5:X22))*Eingabe!$H$36 -> 0 | Z23: 0 | AA23: 269.2207619 | AB23: =AA23/(1+Eingabe!N$37)^Q23 -> 188.4974403 | AC23: 76.36051884 | AD23: =IF(AC23<0,AE23,0) -> 0 | AE23: 19
A24: 19 | B24: =Eingabe!N$30/100*(1+Eingabe!N$36)^A23 -> 0.09997723733 | C24: =Eingabe!$G$63/$F$38*$F$39*1/(1+Eingabe!N$33)^A23 -> 1087.824267 | D24: 288.5873001 | E24: =Eingabe!$N$29/100*(1+Eingabe!$N$36)^A24*C24*Berechnungen!$F$45 -> 273.7704893 | F24: 14.81681076 | G24: =$F$61*(Eingabe!N$32)*(1+(Eingabe!N$35))^Berechnungen!A23 -> 15.42505947 | H24: 0 | I24: 0 | J24: 0 | K24: 273.1622406 | L24: =K24/(1+Eingabe!N$37)^A24 -> 187.5069643 | M24: 263.8674832 | N24: 0 | O24: 20 | Q24: 19 | R24: =Eingabe!N$30/100*(1+Eingabe!N$36)^Q23 -> 0.09997723733 | S24: =Eingabe!$G$63*1/(1+Eingabe!N$33)^Q23 -> 1087.824267 | T24: 288.5873001 | U24: =Eingabe!$N$29/100*(1+Eingabe!$N$36)^Q24*S24*$G$45 -> 273.7704893 | V24: 14.81681076 | W24: =Eingabe!G$32*(Eingabe!N$32)*(1+(Eingabe!N$35))^Berechnungen!Q23 -> 15.42505947 | X24: =IF(AND(Eingabe!$I$36<=Berechnungen!Q24,(Eingabe!$I$36+Eingabe!$I$37)>Q24),(Eingabe!$G$34*(1-Eingabe!$G$36))/Eingabe!$I$37,0) -> 0 | Y24: =((Eingabe!$G$34*(1-Eingabe!$G$36))-SUM($X$5:X23))*Eingabe!$H$36 -> 0 | Z24: 0 | AA24: 273.1622406 | AB24: =AA24/(1+Eingabe!N$37)^Q24 -> 187.5069643 | AC24: 263.8674832 | AD24: 0 | AE24: 20
A25: 20 | B25: =Eingabe!N$30/100*(1+Eingabe!N$36)^A24 -> 0.1019767821 | C25: =Eingabe!$G$63/$F$38*$F$39*1/(1+Eingabe!N$33)^A24 -> 1082.412206 | D25: 292.8945732 | E25: =Eingabe!$N$29/100*(1+Eingabe!$N$36)^A25*C25*Berechnungen!$F$45 -> 277.856616 | F25: 15.03795719 | G25: =$F$61*(Eingabe!N$32)*(1+(Eingabe!N$35))^Berechnungen!A24+IF(Eingabe!M31="zweimal",Eingabe!N31,0) -> 15.73356066 | H25: 0 | I25: 0 | J25: 0 | K25: 277.1610125 | L25: =K25/(1+Eingabe!N$37)^A25 -> 186.5214161 | M25: 450.3888993 | N25: 0 | O25: 21 | Q25: 20 | R25: =Eingabe!N$30/100*(1+Eingabe!N$36)^Q24 -> 0.1019767821 | S25: =Eingabe!$G$63*1/(1+Eingabe!N$33)^Q24 -> 1082.412206 | T25: 292.8945732 | U25: =Eingabe!$N$29/100*(1+Eingabe!$N$36)^Q25*S25*$G$45 -> 277.856616 | V25: 15.03795719 | W25: =Eingabe!G$32*(Eingabe!N$32)*(1+(Eingabe!N$35))^Berechnungen!Q24+IF(Eingabe!M31="zweimal",Eingabe!N31,0) -> 15.73356066 | X25: =IF(AND(Eingabe!$I$36<=Berechnungen!Q25,(Eingabe!$I$36+Eingabe!$I$37)>Q25),(Eingabe!$G$34*(1-Eingabe!$G$36))/Eingabe!$I$37,0) -> 0 | Y25: =((Eingabe!$G$34*(1-Eingabe!$G$36))-SUM($X$5:X24))*Eingabe!$H$36 -> 0 | Z25: 0 | AA25: 277.1610125 | AB25: =AA25/(1+Eingabe!N$37)^Q25 -> 186.5214161 | AC25: 450.3888993 | AD25: 0 | AE25: 21
A26: 21 | B26: =Eingabe!N$30/100*(1+Eingabe!N$36)^A25 -> 0.1040163177 | C26: =Eingabe!$G$63/$F$38*$F$39*1/(1+Eingabe!N$33)^A25 -> 1077.027071 | D26: 297.266134 | E26: =Eingabe!$N$29/100*(1+Eingabe!$N$36)^A26*C26*Berechnungen!$F$45 -> 282.0037297 | F26: 15.26240432 | G26: =$F$61*(Eingabe!N$32)*(1+(Eingabe!N$35))^Berechnungen!A25+IF(Eingabe!M31="dreimal",Eingabe!N31,0) -> 16.04823188 | H26: 0 | I26: 0 | J26: 0 | K26: 281.2179021 | L26: =K26/(1+Eingabe!N$37)^A26 -> 185.5407711 | M26: 635.9296703 | N26: 0 | O26: 22 | Q26: 21 | R26: =Eingabe!N$30/100*(1+Eingabe!N$36)^Q25 -> 0.1040163177 | S26: =Eingabe!$G$63*1/(1+Eingabe!N$33)^Q25 -> 1077.027071 | T26: 297.266134 | U26: =Eingabe!$N$29/100*(1+Eingabe!$N$36)^Q26*S26*$G$45 -> 282.0037297 | V26: 15.26240432 | W26: =Eingabe!G$32*(Eingabe!N$32)*(1+(Eingabe!N$35))^Berechnungen!Q25+IF(Eingabe!M31="dreimal",Eingabe!N31,0) -> 16.04823188 | X26: =IF(AND(Eingabe!$I$36<=Berechnungen!Q26,(Eingabe!$I$36+Eingabe!$I$37)>Q26),(Eingabe!$G$34*(1-Eingabe!$G$36))/Eingabe!$I$37,0) -> 0 | Y26: =((Eingabe!$G$34*(1-Eingabe!$G$36))-SUM($X$5:X25))*Eingabe!$H$36 -> 0 | Z26: 0 | AA26: 281.2179021 | AB26: =AA26/(1+Eingabe!N$37)^Q26 -> 185.5407711 | AC26: 635.9296703 | AD26: 0 | AE26: 22
A27: 22 | B27: =Eingabe!N$30/100*(1+Eingabe!N$36)^A26 -> 0.1060966441 | C27: =Eingabe!$G$63/$F$38*$F$39*1/(1+Eingabe!N$33)^A26 -> 1071.668727 | D27: 301.702942 | E27: =Eingabe!$N$29/100*(1+Eingabe!$N$36)^A27*C27*Berechnungen!$F$45 -> 286.2127406 | F27: 15.4902014 | G27: =$F$61*(Eingabe!N$32)*(1+(Eingabe!N$35))^Berechnungen!A26 -> 16.36919651 | H27: 0 | I27: 0 | J27: 0 | K27: 285.3337454 | L27: =K27/(1+Eingabe!N$37)^A27 -> 184.5650049 | M27: 820.4946752 | N27: 0 | O27: 23 | Q27: 22 | R27: =Eingabe!N$30/100*(1+Eingabe!N$36)^Q26 -> 0.1060966441 | S27: =Eingabe!$G$63*1/(1+Eingabe!N$33)^Q26 -> 1071.668727 | T27: 301.702942 | U27: =Eingabe!$N$29/100*(1+Eingabe!$N$36)^Q27*S27*$G$45 -> 286.2127406 | V27: 15.4902014 | W27: =Eingabe!G$32*(Eingabe!N$32)*(1+(Eingabe!N$35))^Berechnungen!Q26 -> 16.36919651 | X27: =IF(AND(Eingabe!$I$36<=Berechnungen!Q27,(Eingabe!$I$36+Eingabe!$I$37)>Q27),(Eingabe!$G$34*(1-Eingabe!$G$36))/Eingabe!$I$37,0) -> 0 | Y27: =((Eingabe!$G$34*(1-Eingabe!$G$36))-SUM($X$5:X26))*Eingabe!$H$36 -> 0 | Z27: 0 | AA27: 285.3337454 | AB27: =AA27/(1+Eingabe!N$37)^Q27 -> 184.5650049 | AC27: 820.4946752 | AD27: 0 | AE27: 23
A28: 23 | B28: =Eingabe!N$30/100*(1+Eingabe!N$36)^A27 -> 0.108218577 | C28: =Eingabe!$G$63/$F$38*$F$39*1/(1+Eingabe!N$33)^A27 -> 1066.337042 | D28: 306.2059709 | E28: =Eingabe!$N$29/100*(1+Eingabe!$N$36)^A28*C28*Berechnungen!$F$45 -> 290.4845725 | F28: 15.72139843 | G28: =$F$61*(Eingabe!N$32)*(1+(Eingabe!N$35))^Berechnungen!A27 -> 16.69658044 | H28: 0 | I28: 0 | J28: 0 | K28: 289.5093905 | L28: =K28/(1+Eingabe!N$37)^A28 -> 183.5940932 | M28: 1004.088768 | N28: 0 | O28: 24 | Q28: 23 | R28: =Eingabe!N$30/100*(1+Eingabe!N$36)^Q27 -> 0.108218577 | S28: =Eingabe!$G$63*1/(1+Eingabe!N$33)^Q27 -> 1066.337042 | T28: 306.2059709 | U28: =Eingabe!$N$29/100*(1+Eingabe!$N$36)^Q28*S28*$G$45 -> 290.4845725 | V28: 15.72139843 | W28: =Eingabe!G$32*(Eingabe!N$32)*(1+(Eingabe!N$35))^Berechnungen!Q27 -> 16.69658044 | X28: =IF(AND(Eingabe!$I$36<=Berechnungen!Q28,(Eingabe!$I$36+Eingabe!$I$37)>Q28),(Eingabe!$G$34*(1-Eingabe!$G$36))/Eingabe!$I$37,0) -> 0 | Y28: =((Eingabe!$G$34*(1-Eingabe!$G$36))-SUM($X$5:X27))*Eingabe!$H$36 -> 0 | Z28: 0 | AA28: 289.5093905 | AB28: =AA28/(1+Eingabe!N$37)^Q28 -> 183.5940932 | AC28: 1004.088768 | AD28: 0 | AE28: 24
A29: 24 | B29: =Eingabe!N$30/100*(1+Eingabe!N$36)^A28 -> 0.1103829485 | C29: =Eingabe!$G$63/$F$38*$F$39*1/(1+Eingabe!N$33)^A28 -> 1061.031883 | D29: 310.7762093 | E29: =Eingabe!$N$29/100*(1+Eingabe!$N$36)^A29*C29*Berechnungen!$F$45 -> 294.8201632 | F29: 15.95604617 | G29: =$F$61*(Eingabe!N$32)*(1+(Eingabe!N$35))^Berechnungen!A28+IF(Eingabe!M31="viermal",Eingabe!N31,0) -> 17.03051205 | H29: 0 | I29: 0 | J29: 0 | K29: 293.7456973 | L29: =K29/(1+Eingabe!N$37)^A29 -> 182.628012 | M29: 1186.71678 | N29: 0 | O29: 25 | Q29: 24 | R29: =Eingabe!N$30/100*(1+Eingabe!N$36)^Q28 -> 0.1103829485 | S29: =Eingabe!$G$63*1/(1+Eingabe!N$33)^Q28 -> 1061.031883 | T29: 310.7762093 | U29: =Eingabe!$N$29/100*(1+Eingabe!$N$36)^Q29*S29*$G$45 -> 294.8201632 | V29: 15.95604617 | W29: =Eingabe!G$32*(Eingabe!N$32)*(1+(Eingabe!N$35))^Berechnungen!Q28+IF(Eingabe!M31="viermal",Eingabe!N31,0) -> 17.03051205 | X29: =IF(AND(Eingabe!$I$36<=Berechnungen!Q29,(Eingabe!$I$36+Eingabe!$I$37)>Q29),(Eingabe!$G$34*(1-Eingabe!$G$36))/Eingabe!$I$37,0) -> 0 | Y29: =((Eingabe!$G$34*(1-Eingabe!$G$36))-SUM($X$5:X28))*Eingabe!$H$36 -> 0 | Z29: 0 | AA29: 293.7456973 | AB29: =AA29/(1+Eingabe!N$37)^Q29 -> 182.628012 | AC29: 1186.71678 | AD29: 0 | AE29: 25
A30: 25 | B30: =Eingabe!N$30/100*(1+Eingabe!N$36)^A29 -> 0.1125906075 | C30: =Eingabe!$G$63/$F$38*$F$39*1/(1+Eingabe!N$33)^A29 -> 1055.753117 | D30: =+E30+F30 -> 315.4146602 | E30: =Eingabe!$N$29/100*(1+Eingabe!$N$36)^A30*C30*Berechnungen!$F$45 -> 299.2204641 | F30: 16.19419611 | G30: =$F$61*(Eingabe!N$32)*(1+(Eingabe!N$35))^Berechnungen!A29 -> 17.37112229 | H30: 0 | I30: 0 | J30: 0 | K30: 298.0435379 | L30: =K30/(1+Eingabe!N$37)^A30 -> 181.6667371 | M30: 1368.383518 | N30: 0 | O30: 26 | Q30: 25 | R30: =Eingabe!N$30/100*(1+Eingabe!N$36)^Q29 -> 0.1125906075 | S30: =Eingabe!$G$63*1/(1+Eingabe!N$33)^Q29 -> 1055.753117 | T30: 315.4146602 | U30: =Eingabe!$N$29/100*(1+Eingabe!$N$36)^Q30*S30*$G$45 -> 299.2204641 | V30: 16.19419611 | W30: =Eingabe!G$32*(Eingabe!N$32)*(1+(Eingabe!N$35))^Berechnungen!Q29 -> 17.37112229 | X30: =IF(AND(Eingabe!$I$36<=Berechnungen!Q30,(Eingabe!$I$36+Eingabe!$I$37)>Q30),(Eingabe!$G$34*(1-Eingabe!$G$36))/Eingabe!$I$37,0) -> 0 | Y30: =((Eingabe!$G$34*(1-Eingabe!$G$36))-SUM($X$5:X29))*Eingabe!$H$36 -> 0 | Z30: 0 | AA30: 298.0435379 | AB30: =AA30/(1+Eingabe!N$37)^Q30 -> 181.6667371 | AC30: =AC29+AB30 -> 1368.383518 | AD30: 0 | AE30: 26
A31: Summen | C31: =SUM(C6:C30) -> 28039.86846 | D31: =SUM(D6:D30) -> 6638.777315 | E31: =SUM(E6:E30) -> 6297.925493 | F31: =SUM(F5:F30) -> 340.8518226 | G31: =SUM(G5:G30) -> 4045.927237 | H31: =SUM(H6:H30) -> 0 | I31: =SUM(I6:I30) -> 0 | J31: =SUM(J5:J30) -> 0 | K31: =SUM(K5:K30) -> 2592.850078 | L31: =SUM(L5:L30) -> 1368.383518 | N31: =IF(MAX(N5:N30)>25,">25",MAX(N5:N30)) -> 18 | Q31: Summen | S31: =SUM(S6:S30) -> 28039.86846 | T31: =SUM(T6:T30) -> 6638.777315 | U31: =SUM(U6:U30) -> 6297.925493 | V31: =SUM(V5:V30) -> 340.8518226 | W31: =SUM(W5:W30) -> 4045.927237 | X31: =SUM(X6:X30) -> 0 | Y31: =SUM(Y6:Y30) -> 0 | Z31: =SUM(Z5:Z30) -> 0 | AA31: =SUM(AA5:AA30) -> 2592.850078 | AB31: =SUM(AB5:AB30) -> 1368.383518 | AD31: =IF(MAX(AD5:AD30)>25,">25",MAX(AD5:AD30)) -> 18
J32: =Berechnungen!G31+J31 -> 4045.927237 | Z32: =Berechnungen!W31+Z31 -> 4045.927237
J34: =+J32/C31 -> 0.1442919478 | Z34: =+Z32/S31 -> 0.1442919478
I37: Anmerkung/Frage
B38: Berechnungen | E38: gewählt: | F38: =+Eingabe!G48 -> 1.2
E39: Vorgeschlagene Größe der PV-Anlage | F39: =+Eingabe!G177 -> 1.2 | G39: kWp
G42: =+Eingabe!G48 -> 1.2
F43: vorgeschlagene Größe | G43: gewählte Größe
F44: =+F39 -> 1.2 | G44: =+Eingabe!G48 -> 1.2 | H44: kWp
E45: Eigennutzung | F45: =+'Näherungsrechnung per Formel'!J29 -> 0.8637630665 | G45: ='Näherungsrechnung per Formel'!$J$30 -> 0.8637630665 | H45: %
E46: durchschnittliche Stomkosten pro kWh | F46: =+J32/C31*100 -> 14.42919478 | G46: =+Z32/S31*100 -> 14.42919478 | H46: cent/kWh
E47: Strompreis EVU | F47: =+Eingabe!N29 -> 20 | G47: 20 | H47: cent/kWh
E48: erzeugter Strom | F48: =+C31 -> 28039.86846 | G48: =+S31 -> 28039.86846
E49: mit Eigennutzung genutzter Strom | F49: =+F48*F45 -> 24219.80277 | G49: =+G48*G45 -> 24219.80277
E50: Strombedarf gesamt | F50: =+(Eingabe!$G$24+'Näherungsrechnung per Formel'!$F$6+'Näherungsrechnung per Formel'!$F$8)*25 -> 175312.5 | G50: =+F50 -> 175312.5
E51: zugekaufter Strom | F51: =F50-F49 -> 151092.6972 | G51: =G50-G49 -> 151092.6972
E52: Kosten Strom zugekauft | F52: =+F51*F47/100 -> 30218.53945 | G52: =+G51*G47/100 -> 30218.53945
E53: Ausgaben minus Erlös | F53: =+G31+J31-F31 -> 3705.075414 | G53: =+W31+Z31-V31 -> 3705.075414
E54: Ausgaben gesamt | F54: =+F53+F52 -> 33923.61486 | G54: =+G53+G52 -> 33923.61486
E55: durchschnittliche Stomkosten pro kWh für gesamten Bedarf | F55: =+F54/F50 -> 0.1935036855 | G55: =+G54/G50 -> 0.1935036855 | H55: EUR/kWh
C57: Investitionskosten bei empfohlener Größe der Anlage
E58: =Eingabe!F29 -> Spezifische Kosten für die ersten 3,5 kWp | F58: =Eingabe!G29 -> 2250
E59: =Eingabe!F30 -> Spezifische Kosten ab 3,5 kWp | F59: =Eingabe!G30 -> 2000
E61: =Eingabe!F32 -> Gesamtkosten der Anlage: | F61: =IF(F39>3.5,3.5*F58+(F39-3.5)*F59,F39*F58) -> 2700
E62: =Eingabe!F33 -> Förderung: | F62: =Eingabe!G33 -> 0
E63: =Eingabe!F34 -> Investitionskosten abzüglich Förderung: | F63: =+F61-F62 -> 2700
B66: Konstanten:
B67: Auswahllisten und damit verknüpfte Faktoren:
B69: Betriebsweise Wärmepumpe | F69: Heizgewohnheiten
H70: Faktor für HWB lt. Energieausweis
C71: =+Eingabe!F166 -> WP-Tarifoptimiert (nachts) | D71: 0 | G71: sparsamer Haushalt | H71: 1 | Q71: Vorgeschlagene Größe pro kWh Stromverbrauch | R71: =1/1000 -> 0.001 | S71: kWp/(kWh/a) | T71: bis 3000 kWh Haushaltsstromverbrauch
C72: =+Eingabe!F167 -> AUTO 24h | D72: 0.5 | G72: durchschnittlicher Haushalt | H72: 1.5 | Q72: Vorgeschlagene Größe pro kWh Stromverbrauch | R72: =0.5/1000 -> 0.0005 | S72: kWp/(kWh/a) | T72: über 3000 kWh Haushaltsstromverbrauch
C73: =+Eingabe!F168 -> Eigenverbrauch Optimiert | D73: 1 | G73: legerer Haushalt | H73: 2 | Q73: aufrunden auf | R73: 0.25 | S73: kWp
B76: Vorgegebene Werte, die im Blatt "Eingabe" geändert werden können:
F77: Wert | G77: Einheit | H77: Kommentar
E78: Spezifische Kosten für die ersten 3,5 kWp: | F78: 2250 | G78: [€/kWp]
E79: Spezifische Kosten ab 3,5 kWp: | F79: 2000 | G79: [€/kWp]
B81: Vorgegebene Werte (fix)
F82: Wert | G82: Einheit | H82: Kommentar
E83: Warmwasser | F83: 2.5 | G83: kWh/d.Pers
E84: Treibhauspotenzial Netzstrom Ländermix | F84: 0.28 | G84: kg CO2e/kWh | H84: http://www5.umweltbundesamt.at/emas/co2mon/co2mon.htm

Sheet Näherungsrechnung per Formel (hidden)
B1: Berechnung des Eigenverbrauchs von Gebäuden mit Photovoltaik und Wärmepumpe
C3: Eingaben | E3: AZ | F3: kWh | G3: Multiplikator | H3: Offset | I3: Modellgrenzen, mögl. Input | L3: Kommentar
B4: Lastoptimierte Warmwasserbereitung und Heizung "0 oder 1" | D4: =INDEX(Berechnungen!D70:D74,MATCH(Eingabe!L21,Berechnungen!C70:C74,0)) -> 0.5 | I4: 0 oder 1 | M4: Eingabefelder | P4: Eingabefeld, holt sich Wert aus Blatt "Eingabe"
B5: Warmwasser | C5: kWh/d/Pers | D5: Personen | M5: geändert von Evi | P5: Holt sich Wert aus Blatt "Berechnungen"
C6: =Berechnungen!$F$83 -> 2.5 | D6: =+Eingabe!G21 -> 3 | E6: =Eingabe!$L$22 -> 3 | F6: =C6*D6*365/E6 -> 912.5 | G6: =F6/2 -> 456.25 | H6: =G6*$D$4 -> 228.125 | I6: 1-10 Personen | L6: Halber WW Energiebedarf und zusätzl. Die andere Hälfte bei Lastoptimierung als Offset
B7: Heizenergie | C7: kWh/m^2 | D7: m^2
C8: =+Eingabe!G23 -> 30 | D8: =+Eingabe!G22 -> 140 | E8: =+E6 -> 3 | F8: =C8*C10*D8/E8 -> 2100 | G8: =F8/8 -> 262.5 | H8: =G8*$D$4 -> 131.25 | I8: 10-50 kWh/m^2a; 50-200m^2 | L8: 1/8 Des Heizenergiebedarf und zusätzlich noch 1/16 bzw. 1/8 als Offset bei Lastoptimierung
C9: Faktor Heizgewohnheit | D9: kWh | L9: Wert ist HWB lt. Energieausweis. Zuschlag von 50 oder 100 % je nach Heizgewohnheit
C10: =INDEX(Berechnungen!H70:H74,MATCH(Eingabe!L23,Berechnungen!G70:G74,0)) -> 1.5
R11: erste 3,5 kWp | S11: weiteres kWp
B12: Haushaltsstrom | D12: =Eingabe!$G$24 -> 4000 | I12: 500-8000 | P12: Kosten / Kwp | R12: =+Eingabe!G29 -> 2250 | S12: =+Eingabe!G30 -> 2000
D13: kWh/kWp | P13: Eigenverbrauch Tarif | R13: =+Eingabe!G70 -> 14.42919478 | S13: welcher "Tarif" ist damit gemeint?
B14: kWh/kWp | D14: =+Eingabe!G62 -> 991.6687059 | P14: Eispeisetarif | R14: =+Eingabe!N30 -> 7
P15: Jahre | R15: 25
B17: Eigenverbrauch Photovoltaik | E17: Mögliche Eigennutzung nach Kategorie [kWh] | K17: Verbräuche | P17: Wirtschaftlichkeit
B18: PV Leistung [kWp] | C18: Konstante HH (Näherung) | D18: Konst WW+Heizung (Näherung) | E18: Eigennutzung Haushalt | F18: Eigennutzung Warmwasser | G18: Eigennutzung Heizung | H18: Eigennutzung (theor. Max) | I18: Eigennutzung gesamt kWh | J18: Eigennutzung % | K18: Verbrauch Warmwasser | L18: Verbrauch Heizung | M18: Verbrauch Haushalt | N18: Gesamtverbrauch | O18: Erzeugung | P18: Invest | Q18: Eigenverbrauch/a | R18: Eispeisung/a | S18: Überschuss 25J
B19: 1 | C19: =SQRT((B19*$D$14)/$D$12)/5 -> 0.09958256403 | D19: =SQRT((B19*$D$14)/$G$6)/5 -> 0.2948572842 | E19: =$D$12*C19 -> 398.3302561 | F19: =$G$6*D19+$H$6 -> 362.6536359 | G19: =D19*$G$8+$H$8 -> 208.6500371 | H19: =SUM(E19:G19) -> 969.6339291 | I19: =IF(H19<B19*$D$14,H19,B19*$D$14) -> 969.6339291 | J19: =I19/(B19*$D$14) -> 0.9777801028 | K19: =F6 -> 912.5 | L19: =F8 -> 2100 | M19: =D12 -> 4000 | N19: =SUM(K19:M19) -> 7012.5 | O19: =B19*$D$14 -> 991.6687059 | P19: =IF(B19>3.5,3.5*$R$12+(B19-3.5)*$S$12,B19*$R$12) -> 2250 | Q19: =$R$13*I19 -> 13991.03683 | R19: =$R$14*(O19-I19) -> 154.2434372 | S19: =(R19+Q19)*$R$15-P19 -> 351382.0067 | T19: Zelle R13: unklar was gemeint ist
B20: 2 | C20: 0.1408310126 | D20: 0.4169911703 | E20: 563.3240505 | F20: 418.3772214 | G20: 240.7101822 | H20: 1222.411454 | I20: 1222.411454 | J20: 0.6163406422 | K20: =K19 -> 912.5 | L20: =L19 -> 2100 | M20: =M19 -> 4000 | N20: 7012.5 | O20: 1983.337412 | P20: =IF(B20>3.5,3.5*$R$12+(B20-3.5)*$S$12,B20*$R$12) -> 4500 | Q20: 17638.41297 | R20: 5326.481703 | S20: =(R20+Q20)*$R$15-P20 -> 569622.367
B21: 3 | C21: 0.1724820604 | D21: 0.5107077972 | E21: 689.9282418 | F21: 461.1354325 | G21: 265.3107968 | H21: 1416.374471 | I21: 1416.374471 | J21: 0.4760912802 | K21: 912.5 | L21: 2100 | M21: 4000 | N21: 7012.5 | O21: 2975.006118 | P21: 6750 | Q21: 20437.14313 | R21: 10910.42153 | S21: =(R21+Q21)*$R$15-P21 -> 776939.1163
B22: 4 | C22: 0.1991651281 | D22: 0.5897145684 | E22: 796.6605122 | F22: 497.1822718 | G22: 286.0500742 | H22: 1579.892858 | I22: 1579.892858 | J22: 0.3982914982 | K22: 912.5 | L22: 2100 | M22: 4000 | N22: 7012.5 | O22: 3966.674824 | P22: 8875 | Q22: 22796.58179 | R22: 16707.47376 | S22: 978726.3886
B23: 5 | C23: 0.2226733825 | D23: 0.6593209311 | E23: 890.6935302 | F23: 528.9401748 | G23: 304.3217444 | H23: 1723.955449 | I23: 1723.955449 | J23: 0.347687779 | K23: 912.5 | L23: 2100 | M23: 4000 | N23: 7012.5 | O23: 4958.343529 | P23: 10875 | Q23: 24875.28897 | R23: 22640.71656 | S23: 1177025.138
B24: 6 | C24: 0.2439264692 | D24: 0.7222498933 | E24: 975.7058766 | F24: 557.6515138 | G24: 320.840597 | H24: 1854.197987 | I24: 1854.197987 | J24: 0.311629273 | K24: 912.5 | L24: 2100 | M24: 4000 | N24: 7012.5 | O24: 5950.012235 | P24: 12875 | Q24: 26754.58392 | R24: 28670.69974 | S24: 1372757.091
B25: 7 | C25: 0.2634706993 | D25: 0.7801190463 | E25: 1053.882797 | F25: 584.0543149 | G25: 336.0312496 | H25: 1973.968362 | I25: 1973.968362 | J25: 0.2843646054 | K25: 912.5 | L25: 2100 | M25: 4000 | N25: 7012.5 | O25: 6941.680941 | P25: 14875 | Q25: 28482.77399 | R25: 34773.98806 | S25: 1566544.051
B26: 8 | C26: 0.2816620253 | D26: 0.8339823406 | E26: 1126.648101 | F26: 608.6294429 | G26: 350.1703644 | H26: 2085.447908 | I26: 2085.447908 | J26: 0.2628710445 | K26: 912.5 | L26: 2100 | M26: 4000 | N26: 7012.5 | O26: 7933.349647 | P26: 16875 | Q26: 30091.33408 | R26: 40935.31217 | S26: 1758791.156
B27: 9 | C27: 0.2987476921 | D27: 0.8845718526 | E27: 1194.990768 | F27: 631.7109078 | G27: 363.4501113 | H27: 2190.151787 | I27: 2190.151787 | J27: 0.2453946536 | K27: 912.5 | L27: 2100 | M27: 4000 | N27: 7012.5 | O27: 8925.018353 | P27: 18875 | Q27: 31602.12674 | R27: 47144.06596 | S27: 1949779.817
B28: 10 | C28: 0.3149077176 | D28: 0.9324206028 | E28: 1259.63087 | F28: 653.5419 | G28: 376.0104082 | H28: 2289.183179 | I28: 2289.183179 | J28: 0.2308415265 | K28: 912.5 | L28: 2100 | M28: 4000 | N28: 7012.5 | O28: 9916.687059 | P28: 20875 | Q28: 33031.06997 | R28: 53392.52716 | S28: 2139714.928
A29: vorgeschlagen: | B29: =+Berechnungen!F44 -> 1.2 | C29: 0.1090872333 | D29: 0.3229999716 | E29: 436.3489332 | F29: 375.493737 | G29: 216.0374925 | H29: 1027.880163 | I29: 1027.880163 | J29: 0.8637630665 | K29: =K28 -> 912.5 | L29: =L28 -> 2100 | M29: =M28 -> 4000 | N29: =SUM(K29:M29) -> 7012.5 | O29: 1190.002447
A30: tatsächlich: | B30: =+Berechnungen!G44 -> 1.2 | C30: 0.1090872333 | D30: 0.3229999716 | E30: 436.3489332 | F30: 375.493737 | G30: 216.0374925 | H30: 1027.880163 | I30: 1027.880163 | J30: 0.8637630665 | K30: 912.5 | L30: 2100 | M30: 4000 | N30: 7012.5 | O30: =B30*$D$14 -> 1190.002447

Sheet Ausrichtung (hidden)
AG2: =HLOOKUP(AD13,D6:P7,2,TRUE) -> 8
AA4: Neigung | AB4: 78 | AC4: =C8 -> 0 | AD4: =VLOOKUP(AB4,AC4:AC10,1) -> 75 | AE4: untere Grenze | AF4: =AB4-AD4 -> 3 | AG4: =VLOOKUP(AD5,C6:P14,AG2,TRUE) -> 65 | AJ4: =HLOOKUP(AB4,C6:P14,3,TRUE) -> 85
D5: Osten | J5: Azimut | P5: Westen | S5: Prozent | AB5: =AB4 -> 78 | AC5: 15 | AD5: =AD4+15 -> 90 | AE5: obere Grenze | AF5: =AD5-AB4 -> 12 | AJ5: =VLOOKUP(AB13,C6:P14,1,TRUE) -> 15
D6: -90 | E6: -75 | F6: -60 | G6: -45 | H6: -30 | I6: -15 | J6: 0 | K6: 15 | L6: 30 | M6: 45 | N6: 60 | O6: 75 | P6: 90 | S6: 55 | AB6: 78 | AC6: 30
D7: 1 | E7: 2 | F7: 3 | G7: 4 | H7: 5 | I7: 6 | J7: 7 | K7: 8 | L7: 9 | M7: 10 | N7: 11 | O7: 12 | P7: 13 | S7: 65 | AB7: 78 | AC7: 45
B8: Neigung | C8: 0 | D8: 85 | E8: 85 | F8: 85 | G8: 85 | H8: 85 | I8: 85 | J8: 85 | K8: 85 | L8: 85 | M8: 85 | N8: 85 | O8: 85 | P8: 85 | S8: 75 | AB8: 78 | AC8: 60
C9: 15 | D9: 85 | E9: 85 | F9: 85 | G9: 95 | H9: 95 | I9: 95 | J9: 95 | K9: 95 | L9: 95 | M9: 95 | N9: 85 | O9: 85 | P9: 85 | S9: 85 | AB9: 78 | AC9: 75
C10: 30 | D10: 85 | E10: 85 | F10: 85 | G10: 95 | H10: 95 | I10: 95 | J10: 100 | K10: 95 | L10: 95 | M10: 95 | N10: 85 | O10: 85 | P10: 85 | S10: 95 | AB10: 78 | AC10: 90
C11: 45 | D11: 75 | E11: 85 | F11: 85 | G11: 85 | H11: 95 | I11: 95 | J11: 95 | K11: 95 | L11: 95 | M11: 85 | N11: 85 | O11: 85 | P11: 75 | S11: 100
C12: 60 | D12: 75 | E12: 75 | F12: 75 | G12: 85 | H12: 85 | I12: 85 | J12: 85 | K12: 85 | L12: 85 | M12: 85 | N12: 75 | O12: 75 | P12: 75
C13: 75 | D13: 65 | E13: 65 | F13: 75 | G13: 75 | H13: 75 | I13: 75 | J13: 75 | K13: 75 | L13: 75 | M13: 75 | N13: 75 | O13: 65 | P13: 65 | AA13: Azimut | AB13: 20 | AC13: -90 | AD13: =VLOOKUP(AB13,AC13:AC25,1) -> 15 | AE13: untere Grenze | AF13: =AB13-AD13 -> 5
C14: 90 | D14: 55 | E14: 55 | F14: 65 | G14: 65 | H14: 65 | I14: 65 | J14: 65 | K14: 65 | L14: 65 | M14: 65 | N14: 65 | O14: 55 | P14: 55 | AB14: =AB13 -> 20 | AC14: -75 | AD14: =AD13+15 -> 30 | AE14: obere Grenze | AF14: =AD14-AB13 -> 10
C15: Angaben in Prozent | AB15: =AB14 -> 20 | AC15: -60
AB16: 20 | AC16: -45
C17: Einstrahlung auf die horizontale Fläche: | I17: =Eingabe!O11 -> 1084 | J17: kWh/m²a | M17: =I17/85 -> 12.75294118 | AB17: 20 | AC17: -30
AB18: 20 | AC18: -15
AB19: 20 | AC19: 0
AB20: 20 | AC20: 15
D21: Osten | J21: Azimut | P21: Westen | AB21: 20 | AC21: 30
D22: -90 | E22: -75 | F22: -60 | G22: -45 | H22: -30 | I22: -15 | J22: 0 | K22: 15 | L22: 30 | M22: 45 | N22: 60 | O22: 75 | P22: 90 | AB22: 20 | AC22: 45
D23: 1 | E23: 2 | F23: 3 | G23: 4 | H23: 5 | I23: 6 | J23: 7 | K23: 8 | L23: 9 | M23: 10 | N23: 11 | O23: 12 | P23: 13 | AB23: 20 | AC23: 60
B24: Neigung | C24: 0 | D24: =$M$17*D8 -> 1084 | E24: 1084 | F24: 1084 | G24: 1084 | H24: 1084 | I24: 1084 | J24: 1084 | K24: 1084 | L24: 1084 | M24: 1084 | N24: 1084 | O24: 1084 | P24: 1084 | AB24: 20 | AC24: 75
C25: 15 | D25: =$M$17*D9 -> 1084 | E25: 1084 | F25: 1084 | G25: 1211.529412 | H25: 1211.529412 | I25: 1211.529412 | J25: 1211.529412 | K25: 1211.529412 | L25: 1211.529412 | M25: 1211.529412 | N25: 1084 | O25: 1084 | P25: 1084 | AB25: 20 | AC25: 90
C26: 30 | D26: =$M$17*D10 -> 1084 | E26: 1084 | F26: 1084 | G26: 1211.529412 | H26: 1211.529412 | I26: 1211.529412 | J26: 1275.294118 | K26: 1211.529412 | L26: 1211.529412 | M26: 1211.529412 | N26: 1084 | O26: 1084 | P26: 1084
C27: 45 | D27: =$M$17*D11 -> 956.4705882 | E27: 1084 | F27: 1084 | G27: 1084 | H27: =$M$17*H11 -> 1211.529412 | I27: 1211.529412 | J27: 1211.529412 | K27: 1211.529412 | L27: 1211.529412 | M27: 1084 | N27: 1084 | O27: 1084 | P27: 956.4705882
C28: 60 | D28: =$M$17*D12 -> 956.4705882 | E28: 956.4705882 | F28: 956.4705882 | G28: 1084 | H28: 1084 | I28: 1084 | J28: 1084 | K28: =$M$17*K12 -> 1084 | L28: 1084 | M28: 1084 | N28: =$M$17*N12 -> 956.4705882 | O28: 956.4705882 | P28: 956.4705882
C29: 75 | D29: =$M$17*D13 -> 828.9411765 | E29: 828.9411765 | F29: 956.4705882 | G29: 956.4705882 | H29: 956.4705882 | I29: 956.4705882 | J29: 956.4705882 | K29: 956.4705882 | L29: 956.4705882 | M29: 956.4705882 | N29: 956.4705882 | O29: 828.9411765 | P29: 828.9411765
C30: 90 | D30: =$M$17*D14 -> 701.4117647 | E30: 701.4117647 | F30: 828.9411765 | G30: 828.9411765 | H30: 828.9411765 | I30: 828.9411765 | J30: 828.9411765 | K30: 828.9411765 | L30: 828.9411765 | M30: 828.9411765 | N30: 828.9411765 | O30: 701.4117647 | P30: 701.4117647
C31: Angaben in kWh/m²a
D35: Osten | J35: Azimut | P35: Westen
D36: -90 | E36: -75 | F36: -60 | G36: -45 | H36: -30 | I36: -15 | J36: 0 | K36: 15 | L36: 30 | M36: 45 | N36: 60 | O36: 75 | P36: 90
D37: 1 | E37: 2 | F37: 3 | G37: 4 | H37: 5 | I37: 6 | J37: 7 | K37: 8 | L37: 9 | M37: 10 | N37: 11 | O37: 12 | P37: 13
B38: Neigung | C38: 0 | D38: =IF($F$51=0,D24,"") -> 
C39: 15 | D39: =IF($F$51=15,D25,"") -> 
C40: 30 | D40: =IF($F$51=30,D26,"") -> 1084 | E40: 1084 | F40: 1084 | G40: 1211.529412 | H40: =IF($F$51=30,H26,"") -> 1211.529412 | I40: 1211.529412 | J40: 1275.294118 | K40: 1211.529412 | L40: 1211.529412 | M40: 1211.529412 | N40: 1084 | O40: 1084 | P40: 1084
C41: 45 | D41: =IF($F$51=45,D27,"") -> 
C42: 60 | D42: =IF($F$51=60,D28,"") -> 
C43: 75 | D43: =IF($F$51=75,D29,"") -> 
C44: 90 | D44: =IF($F$51=90,D30,"") -> 
C45: Angaben in kWh/m²a
B47: Auswahl: | D47: =IF($F$50=-90,SUM(D38:D44),"") ->  | E47: =IF($F$50=-75,SUM(E38:E44),"") ->  | F47: =IF($F$50=-60,SUM(F38:F44),"") ->  | G47: =IF($F$50=-45,SUM(G38:G44),"") ->  | H47: =IF($F$50=-30,SUM(H38:H44),"") ->  | I47: =IF($F$50=-15,SUM(I38:I44),"") ->  | J47: =IF($F$50=0,SUM(J38:J44),"") -> 1275.294118 | K47: =IF($F$50=15,SUM(K38:K44),"") ->  | L47: =IF($F$50=30,SUM(L38:L44),"") ->  | M47: =IF($F$50=45,SUM(M38:M44),"") ->  | N47: =IF($F$50=60,SUM(N38:N44),"") ->  | O47: =IF($F$50=75,SUM(O38:O44),"") ->  | P47: =IF($F$50=90,SUM(P38:P44),"") -> 
C49: Zuteilung der Werte aus der Einagbemaske:
E50: Ausrichtung: | F50: =Eingabe!$F$17 -> 0 | G50: °
E51: Neigung: | F51: =Eingabe!$L$17 -> 30 | G51: ° | H51: =SUM(D47:P47) -> 1275.294118 | I51: kWh/m²a

Sheet Wetterdaten (hidden)
A1: Ort | B1: PLZ | C1: Land | D1: PLZ-Differenz | E1: Jährliche Einstrahlung | F1: mittlere Aussentemperatur | G1: Längengrad | H1: Breitengrad | I1: Ermittlung der Einstrahlung
E2: [kWh/m²a] | F2: [°C] | G2: [°] | H2: [°]
A3: Admont | B3: 8911 | C3: AUT | D3: =IF(B3>$L$3,B3-$L$3,$L$3-B3) -> 7781 | E3: 1028.32 | F3: 5.86 | G3: -14.45 | H3: 47.57 | I3: =IF($L$4=D3,E3,0) -> 0 | J3: =IF(I3=0,0,1) -> 0 | K3: PLZ: | L3: =Eingabe!D11 -> 1130
A4: Amstetten | B4: 3300 | C4: AUT | D4: =IF(B4>$L$3,B4-$L$3,$L$3-B4) -> 2170 | E4: 1069.1 | F4: 8.79 | G4: -14.83 | H4: 48.08 | I4: 0 | J4: =IF(I4=0,0,1) -> 0 | K4: Diff: | L4: =MIN(D3:D53) -> 60
A5: Arriach | B5: 9543 | C5: AUT | D5: =IF(B5>$L$3,B5-$L$3,$L$3-B5) -> 8413 | E5: 1144.54 | F5: 6.46 | G5: -13.85 | H5: 46.72 | I5: 0 | J5: 0 | K5: Einstrahlung | L5: =ROUNDDOWN(K54,-0.5) -> 1084 | M5: kWh/m²a
A6: Bad Gleichenberg | B6: 8344 | C6: AUT | D6: 7214 | E6: 1153.19 | F6: 9.14 | G6: -15.88 | H6: 46.87 | I6: 0 | J6: 0
A7: Bad Ischl | B7: 4820 | C7: AUT | D7: 3690 | E7: 1093.31 | F7: 7.90 | G7: -13.60 | H7: 47.72 | I7: 0 | J7: 0
A8: Bludenz | B8: 6700 | C8: AUT | D8: =IF(B8>$L$3,B8-$L$3,$L$3-B8) -> 5570 | E8: 1079.79 | F8: 7.97 | G8: -9.82 | H8: 48.50 | I8: 0 | J8: 0
A9: Bruck an der Mur | B9: 8600 | C9: AUT | D9: 7470 | E9: 1070.77 | F9: 8.07 | G9: -15.25 | H9: 47.42 | I9: 0 | J9: 0
A10: Eisenerz | B10: 8790 | C10: AUT | D10: 7660 | E10: 1071.43 | F10: 7.11 | G10: -14.88 | H10: 47.53 | I10: 0 | J10: 0
A11: Eisenstadt | B11: 7000 | C11: AUT | D11: =IF(B11>$L$3,B11-$L$3,$L$3-B11) -> 5870 | E11: 1132.17 | F11: 10.01 | G11: -16.68 | H11: 47.90 | I11: 0 | J11: 0
A12: Feldkirch | B12: 6800 | C12: AUT | D12: 5670 | E12: 1100.38 | F12: 8.30 | G12: -9.58 | H12: 47.23 | I12: 0 | J12: 0
A13: Ferlach | B13: 9170 | C13: AUT | D13: 8040 | E13: 1156.25 | F13: 7.82 | G13: -14.28 | H13: 46.52 | I13: 0 | J13: 0
A14: Fresach | B14: 9712 | C14: AUT | D14: 8582 | E14: 1207.36 | F14: 7.07 | G14: -13.68 | H14: 46.70 | I14: 0 | J14: 0
A15: Gargellen | B15: 6787 | C15: AUT | D15: 5657 | E15: 1174.51 | F15: 4.42 | G15: -9.92 | H15: 46.97 | I15: 0 | J15: 0
A16: Gmunden | B16: 4810 | C16: AUT | D16: 3680 | E16: 1088.42 | F16: 8.57 | G16: -13.80 | H16: 47.92 | I16: 0 | J16: 0
A17: Graz | B17: 8010 | C17: AUT | D17: 6880 | E17: 1126.02 | F17: 9.17 | G17: -15.42 | H17: 47.67 | I17: 0 | J17: 0
A18: Gumpoldskirchen | B18: 2352 | C18: AUT | D18: 1222 | E18: 1125.22 | F18: 9.11 | G18: -16.27 | H18: 48.33 | I18: 0 | J18: 0
A19: Hallstadt | B19: 4830 | C19: AUT | D19: 3700 | E19: 1054.8 | F19: 8.00 | G19: -13.63 | H19: 47.55 | I19: 0 | J19: 0
A20: Imst | B20: 6460 | C20: AUT | D20: 5330 | E20: 1069.11 | F20: 7.31 | G20: -10.72 | H20: 47.23 | I20: 0 | J20: 0
A21: Innsbruck | B21: 6020 | C21: AUT | D21: 4890 | E21: 1089.72 | F21: 8.61 | G21: -11.40 | H21: 47.27 | I21: 0 | J21: 0
A22: Kitzbuehl | B22: 6370 | C22: AUT | D22: 5240 | E22: 1069.88 | F22: 6.19 | G22: -12.38 | H22: 47.45 | I22: 0 | J22: 0
A23: Klagenfurt | B23: 9010 | C23: AUT | D23: 7880 | E23: 1131 | F23: 8.14 | G23: -14.30 | H23: 46.62 | I23: 0 | J23: 0
A24: Krems a. d. Donau | B24: 3500 | C24: AUT | D24: 2370 | E24: 1071.4 | F24: 9.62 | G24: -15.58 | H24: 48.50 | I24: =IF($L$4=D24,E24,0) -> 0 | J24: 0
A25: Kremsmünster | B25: 4550 | C25: AUT | D25: 3420 | E25: 1046.5 | F25: 7.69 | G25: -14.12 | H25: 48.05 | I25: 0 | J25: 0
A26: Leoben | B26: 8700 | C26: AUT | D26: 7570 | E26: 1068.49 | F26: 8.30 | G26: -15.83 | H26: 47.37 | I26: 0 | J26: 0
A27: Lienz | B27: 9900 | C27: AUT | D27: 8770 | E27: 1147.74 | F27: 7.41 | G27: -12.80 | H27: 46.83 | I27: 0 | J27: 0
A28: Lilienfeld | B28: 3180 | C28: AUT | D28: 2050 | E28: 1075.26 | F28: 8.36 | G28: -15.62 | H28: 48.17 | I28: 0 | J28: 0
A29: Millstatt | B29: 9872 | C29: AUT | D29: 8742 | E29: 1189.53 | F29: 8.67 | G29: -13.57 | H29: 46.80 | I29: 0 | J29: 0
A30: Mondsee | B30: 5310 | C30: AUT | D30: 4180 | E30: 1046.56 | F30: 7.84 | G30: -13.33 | H30: 47.85 | I30: 0 | J30: 0
A31: Mönichkirchen | B31: 2872 | C31: AUT | D31: 1742 | E31: 1083.3 | F31: 6.25 | G31: -16.17 | H31: 47.50 | I31: 0 | J31: 0
A32: Nauders | B32: 6543 | C32: AUT | D32: 5413 | E32: 1201.41 | F32: 4.71 | G32: -10.50 | H32: 46.88 | I32: 0 | J32: 0
A33: Neumarkt in der Steiermark | B33: 8820 | C33: AUT | D33: 7690 | E33: 1161.95 | F33: 6.39 | G33: -14.42 | H33: 47.67 | I33: 0 | J33: 0
A34: Obervellach | B34: 9821 | C34: AUT | D34: 8691 | E34: 1226.7 | F34: 8.44 | G34: -13.20 | H34: 46.93 | I34: 0 | J34: 0
A35: Oberwölz Stadt | B35: 8832 | C35: AUT | D35: =IF(B35>$L$3,B35-$L$3,$L$3-B35) -> 7702 | E35: 1107.85 | F35: 6.20 | G35: -14.27 | H35: 47.20 | I35: =IF($L$4=D35,E35,0) -> 0 | J35: 0
A36: Radentheim | B36: 9545 | C36: AUT | D36: 8415 | E36: 1133.12 | F36: 7.53 | G36: -13.70 | H36: 46.80 | I36: 0 | J36: 0
A37: Ramsau Dachstein | B37: 8972 | C37: AUT | D37: 7842 | E37: 1129.03 | F37: 5.16 | G37: -12.88 | H37: 47.60 | I37: 0 | J37: 0
A38: Rauris | B38: 5661 | C38: AUT | D38: 4531 | E38: 1124.15 | F38: 5.82 | G38: -12.98 | H38: 47.23 | I38: 0 | J38: 0
A39: Reichersberg | B39: 4981 | C39: AUT | D39: 3851 | E39: 1037.37 | F39: 8.48 | G39: -13.37 | H39: 48.33 | I39: 0 | J39: 0
A40: Reichraming | B40: 4462 | C40: AUT | D40: 3332 | E40: 1068.82 | F40: 8.13 | G40: -14.45 | H40: 47.88 | I40: 0 | J40: 0
A41: Salzburg | B41: 5020 | C41: AUT | D41: 3890 | E41: 1113.61 | F41: 8.39 | G41: -13.33 | H41: 47.82 | I41: 0 | J41: 0
A42: St. Lorenzen im Lesachtal | B42: 9654 | C42: AUT | D42: 8524 | E42: 1217.13 | F42: 5.73 | G42: 12.77 | H42: 46.70 | I42: 0 | J42: 0
A43: St. Michael i. Lundgau | B43: 5582 | C43: AUT | D43: 4452 | E43: 1194.76 | F43: 6.55 | G43: -13.48 | H43: 47.83 | I43: 0 | J43: 0
A44: St. Pölten | B44: 3100 | C44: AUT | D44: 1970 | E44: 1031.18 | F44: 8.59 | G44: -15.60 | H44: 48.20 | I44: 0 | J44: 0
A45: Velden am Wörtersee | B45: 9220 | C45: AUT | D45: 8090 | E45: 1189.4 | F45: 8.04 | G45: -14.33 | H45: 46.62 | I45: 0 | J45: 0
A46: Villach | B46: 9500 | C46: AUT | D46: 8370 | E46: 1188.95 | F46: 8.04 | G46: -13.83 | H46: 46.62 | I46: 0 | J46: 0
A47: Wels | B47: 4600 | C47: AUT | D47: 3470 | E47: 1036.5 | F47: 8.67 | G47: -14.17 | H47: 48.17 | I47: 0 | J47: 0
A48: Weyer Mark | B48: 3335 | C48: AUT | D48: 2205 | E48: 1106.53 | F48: 7.58 | G48: -14.65 | H48: 47.85 | I48: 0 | J48: 0
A49: Wien | B49: 1190 | C49: AUT | D49: 60 | E49: 1084.48 | F49: 9.77 | G49: -16.33 | H49: 48.20 | I49: 1084.48 | J49: 1
A50: Wiener Neustadt | B50: 2700 | C50: AUT | D50: 1570 | E50: 1080.56 | F50: 9.44 | G50: -16.23 | H50: 47.82 | I50: 0 | J50: 0
A51: Wolfsberg | B51: 9400 | C51: AUT | D51: 8270 | E51: 1066.68 | F51: 7.86 | G51: -14.83 | H51: 46.85 | I51: 0 | J51: 0
A52: Zell am See | B52: 5700 | C52: AUT | D52: 4570 | E52: 1080.32 | F52: 6.55 | G52: -12.77 | H52: 47.32 | I52: 0 | J52: 0
A53: Zwettl | B53: 3910 | C53: AUT | D53: 2780 | E53: 1051.52 | F53: 5.71 | G53: -15.15 | H53: 48.58 | I53: 0 | J53: 0
H54: Einstrahlungswert: | I54: =SUM(I3:I53) -> 1084.48 | J54: =SUM(J3:J53) -> 1 | K54: =I54/J54 -> 1084.48

Sheet PLZ-Zuordnung (hidden)
A1: PLZ | B1: Ort | C1: Bundesland | D1: NamePLZTyp | E1: intern_extern | F1: adressierbar | G1: Postfach
I2: Zuordnung der PLZ und des Ortes (Bundesland):
A3: 1004 | B3: Wien | C3: W | D3: InteressentenPLZ | E3: extern | F3: Nein | G3: Ja | I3: =Eingabe!D11 -> 1130 | J3: =VLOOKUP(I3,A3:C2460,3,TRUE) -> W
A4: 1010 | B4: Wien | C4: W | D4: PLZ-Adressierung | E4: extern | F4: Ja | G4: Ja | J4: =VLOOKUP(J3,I7:J15,2,TRUE) -> Wien
A5: 1011 | B5: Wien Postfach | C5: W | D5: PLZ-Postfach | E5: extern | F5: Nein | G5: Ja | J5: =VLOOKUP(I3,A3:C2460,2,FALSE) -> Wien
A6: 1012 | B6: Wien | C6: W | D6: PLZ-Postfach | E6: extern | F6: Nein | G6: Ja
A7: 1013 | B7: Wien | C7: W | D7: PLZ-Postfach | E7: extern | F7: Nein | G7: Ja | I7: B | J7: Burgenland
A8: 1014 | B8: Wien | C8: W | D8: PLZ-Postfach | E8: extern | F8: Nein | G8: Ja | I8: K | J8: Kärnten
A9: 1015 | B9: Wien | C9: W | D9: PLZ-Postfach | E9: extern | F9: Nein | G9: Ja | I9: N | J9: Niederösterreich
A10: 1016 | B10: Wien | C10: W | D10: PLZ-Postfach | E10: extern | F10: Nein | G10: Ja | I10: O | J10: Oberösterreich
A11: 1017 | B11: Wien-Parlament | C11: W | D11: PLZ-Postfach | E11: extern | F11: Nein | G11: Ja | I11: Sa | J11: Salzburg
A12: 1018 | B12: Wien | C12: W | D12: PLZ-Postfach | E12: extern | F12: Nein | G12: Ja | I12: St | J12: Steiermark
A13: 1020 | B13: Wien | C13: W | D13: PLZ-Adressierung | E13: extern | F13: Ja | G13: Ja | I13: T | J13: Tirol
A14: 1021 | B14: Wien Postfach | C14: W | D14: PLZ-Postfach | E14: extern | F14: Nein | G14: Ja | I14: V | J14: Vorarlberg
A15: 1022 | B15: Wien | C15: W | D15: PLZ-Postfach | E15: extern | F15: Nein | G15: Ja | I15: W | J15: Wien
A16: 1023 | B16: Wien | C16: W | D16: PLZ-Postfach | E16: extern | F16: Nein | G16: Ja
A17: 1024 | B17: Wien | C17: W | D17: PLZ-Postfach | E17: extern | F17: Nein | G17: Ja
A18: 1025 | B18: Wien | C18: W | D18: PLZ-Postfach | E18: extern | F18: Nein | G18: Ja
A19: 1029 | B19: Wien | C19: W | D19: InteressentenPLZ | E19: extern | F19: Nein | G19: Ja
A20: 1030 | B20: Wien | C20: W | D20: PLZ-Adressierung | E20: extern | F20: Ja | G20: Ja
A21: 1031 | B21: Wien Postfach | C21: W | D21: PLZ-Postfach | E21: extern | F21: Nein | G21: Ja
A22: 1033 | B22: Wien | C22: W | D22: PLZ-Postfach | E22: extern | F22: Nein | G22: Ja
A23: 1034 | B23: Wien | C23: W | D23: PLZ-Postfach | E23: extern | F23: Nein | G23: Ja
A24: 1035 | B24: Wien | C24: W | D24: PLZ-Postfach | E24: extern | F24: Nein | G24: Ja
A25: 1036 | B25: Wien | C25: W | D25: PLZ-Postfach | E25: extern | F25: Nein | G25: Ja
A26: 1037 | B26: Wien | C26: W | D26: PLZ-Postfach | E26: extern | F26: Nein | G26: Ja
A27: 1038 | B27: Wien | C27: W | D27: InteressentenPLZ | E27: extern | F27: Nein | G27: Ja
A28: 1039 | B28: Wien | C28: W | D28: InteressentenPLZ | E28: extern | F28: Nein | G28: Ja
A29: 1040 | B29: Wien | C29: W | D29: PLZ-Adressierung | E29: extern | F29: Ja | G29: Ja
A30: 1041 | B30: Wien Postfach | C30: W | D30: PLZ-Postfach | E30: extern | F30: Nein | G30: Ja
A31: 1042 | B31: Wien | C31: W | D31: PLZ-Postfach | E31: extern | F31: Nein | G31: Ja
A32: 1043 | B32: Wien | C32: W | D32: PLZ-Postfach | E32: extern | F32: Nein | G32: Ja
A33: 1045 | B33: Wien | C33: W | D33: InteressentenPLZ | E33: extern | F33: Nein | G33: Ja
A34: 1050 | B34: Wien | C34: W | D34: PLZ-Adressierung | E34: extern | F34: Ja | G34: Ja
A35: 1051 | B35: Wien Postfach | C35: W | D35: PLZ-Postfach | E35: extern | F35: Nein | G35: Ja
A36: 1052 | B36: Wien | C36: W | D36: PLZ-Postfach | E36: extern | F36: Nein | G36: Ja
A37: 1053 | B37: Wien | C37: W | D37: PLZ-Postfach | E37: extern | F37: Nein | G37: Ja
A38: 1060 | B38: Wien | C38: W | D38: PLZ-Adressierung | E38: extern | F38: Ja | G38: Ja
A39: 1061 | B39: Wien Postfach | C39: W | D39: PLZ-Postfach | E39: extern | F39: Nein | G39: Ja
A40: 1062 | B40: Wien | C40: W | D40: PLZ-Postfach | E40: extern | F40: Nein | G40: Ja
A41: 1063 | B41: Wien-VÖPh | C41: W | D41: InteressentenPLZ | E41: extern | F41: Nein | G41: Ja
A42: 1070 | B42: Wien | C42: W | D42: PLZ-Adressierung | E42: extern | F42: Ja | G42: Ja
A43: 1071 | B43: Wien Postfach | C43: W | D43: PLZ-Postfach | E43: extern | F43: Nein | G43: Ja
A44: 1072 | B44: Wien | C44: W | D44: PLZ-Postfach | E44: extern | F44: Nein | G44: Ja
A45: 1080 | B45: Wien | C45: W | D45: PLZ-Adressierung | E45: extern | F45: Ja | G45: Ja
A46: 1081 | B46: Wien Postfach | C46: W | D46: PLZ-Postfach | E46: extern | F46: Nein | G46: Ja
A47: 1082 | B47: Wien | C47: W | D47: PLZ-Postfach | E47: extern | F47: Nein | G47: Ja
A48: 1090 | B48: Wien | C48: W | D48: PLZ-Adressierung | E48: extern | F48: Ja | G48: Ja
A49: 1091 | B49: Wien Postfach | C49: W | D49: PLZ-Postfach | E49: extern | F49: Nein | G49: Ja
A50: 1092 | B50: Wien | C50: W | D50: PLZ-Postfach | E50: extern | F50: Nein | G50: Ja
A51: 1093 | B51: Wien | C51: W | D51: PLZ-Postfach | E51: extern | F51: Nein | G51: Ja
A52: 1094 | B52: Wien | C52: W | D52: PLZ-Postfach | E52: extern | F52: Nein | G52: Ja
A53: 1095 | B53: Wien | C53: W | D53: PLZ-Postfach | E53: extern | F53: Nein | G53: Ja
A54: 1096 | B54: Wien | C54: W | D54: PLZ-Postfach | E54: extern | F54: Nein | G54: Ja
A55: 1097 | B55: Wien | C55: W | D55: PLZ-Postfach | E55: extern | F55: Nein | G55: Ja
A56: 1100 | B56: Wien | C56: W | D56: PLZ-Adressierung | E56: extern | F56: Ja | G56: Ja
A57: 1101 | B57: Wien Postfach | C57: W | D57: PLZ-Postfach | E57: extern | F57: Nein | G57: Ja
A58: 1102 | B58: Wien | C58: W | D58: PLZ-Postfach | E58: extern | F58: Nein | G58: Ja
A59: 1103 | B59: Wien | C59: W | D59: PLZ-Postfach | E59: extern | F59: Nein | G59: Ja
A60: 1104 | B60: Wien | C60: W | D60: PLZ-Postfach | E60: extern | F60: Nein | G60: Ja
A61: 1105 | B61: Wien | C61: W | D61: PLZ-Postfach | E61: extern | F61: Nein | G61: Ja
A62: 1106 | B62: Wien | C62: W | D62: PLZ-Postfach | E62: extern | F62: Nein | G62: Ja
A63: 1107 | B63: Wien | C63: W | D63: PLZ-Postfach | E63: extern | F63: Nein | G63: Ja
A64: 1108 | B64: Wien | C64: W | D64: PLZ-Postfach | E64: extern | F64: Nein | G64: Ja
A65: 1109 | B65: Wien | C65: W | D65: PLZ-Postfach | E65: extern | F65: Nein | G65: Ja
A66: 1110 | B66: Wien | C66: W | D66: PLZ-Adressierung | E66: extern | F66: Ja | G66: Ja
A67: 1111 | B67: Wien Postfach | C67: W | D67: PLZ-Postfach | E67: extern | F67: Nein | G67: Ja
A68: 1112 | B68: Wien | C68: W | D68: PLZ-Postfach | E68: extern | F68: Nein | G68: Ja
A69: 1113 | B69: Wien | C69: W | D69: PLZ-Postfach | E69: extern | F69: Nein | G69: Ja
A70: 1120 | B70: Wien | C70: W | D70: PLZ-Adressierung | E70: extern | F70: Ja | G70: Ja
A71: 1121 | B71: Wien Postfach | C71: W | D71: PLZ-Postfach | E71: extern | F71: Nein | G71: Ja
A72: 1122 | B72: Wien | C72: W | D72: PLZ-Postfach | E72: extern | F72: Nein | G72: Ja
A73: 1125 | B73: Wien | C73: W | D73: PLZ-Postfach | E73: extern | F73: Nein | G73: Ja
A74: 1126 | B74: Wien | C74: W | D74: PLZ-Postfach | E74: extern | F74: Nein | G74: Ja
A75: 1127 | B75: Wien | C75: W | D75: PLZ-Postfach | E75: extern | F75: Nein | G75: Ja
A76: 1130 | B76: Wien | C76: W | D76: PLZ-Adressierung | E76: extern | F76: Ja | G76: Ja
A77: 1131 | B77: Wien Postfach | C77: W | D77: PLZ-Postfach | E77: extern | F77: Nein | G77: Ja
A78: 1132 | B78: Wien | C78: W | D78: PLZ-Postfach | E78: extern | F78: Nein | G78: Ja
A79: 1133 | B79: Wien | C79: W | D79: PLZ-Postfach | E79: extern | F79: Nein | G79: Ja
A80: 1134 | B80: Wien | C80: W | D80: PLZ-Postfach | E80: extern | F80: Nein | G80: Ja
A81: 1136 | B81: Wien | C81: W | D81: InteressentenPLZ | E81: extern | F81: Nein | G81: Ja
A82: 1140 | B82: Wien | C82: W | D82: PLZ-Adressierung | E82: extern | F82: Ja | G82: Ja
A83: 1141 | B83: Wien Postfach | C83: W | D83: PLZ-Postfach | E83: extern | F83: Nein | G83: Ja
A84: 1142 | B84: Wien | C84: W | D84: PLZ-Postfach | E84: extern | F84: Nein | G84: Ja
A85: 1143 | B85: Wien | C85: W | D85: PLZ-Postfach | E85: extern | F85: Nein | G85: Ja
A86: 1144 | B86: Wien | C86: W | D86: PLZ-Postfach | E86: extern | F86: Nein | G86: Ja
A87: 1145 | B87: Wien | C87: W | D87: PLZ-Postfach | E87: extern | F87: Nein | G87: Ja
A88: 1147 | B88: Wien | C88: W | D88: PLZ-Postfach | E88: extern | F88: Nein | G88: Ja
A89: 1148 | B89: Wien | C89: W | D89: InteressentenPLZ | E89: extern | F89: Nein | G89: Ja
A90: 1150 | B90: Wien | C90: W | D90: PLZ-Adressierung | E90: extern | F90: Ja | G90: Ja
A91: 1151 | B91: Wien Postfach | C91: W | D91: PLZ-Postfach | E91: extern | F91: Nein | G91: Ja
A92: 1152 | B92: Wien | C92: W | D92: PLZ-Postfach | E92: extern | F92: Nein | G92: Ja
A93: 1153 | B93: Wien | C93: W | D93: PLZ-Postfach | E93: extern | F93: Nein | G93: Ja
A94: 1160 | B94: Wien | C94: W | D94: PLZ-Adressierung | E94: extern | F94: Ja | G94: Ja
A95: 1161 | B95: Wien Postfach | C95: W | D95: PLZ-Postfach | E95: extern | F95: Nein | G95: Ja
A96: 1163 | B96: Wien | C96: W | D96: PLZ-Postfach | E96: extern | F96: Nein | G96: Ja
A97: 1165 | B97: Wien | C97: W | D97: PLZ-Postfach | E97: extern | F97: Nein | G97: Ja
A98: 1166 | B98: Wien | C98: W | D98: PLZ-Postfach | E98: extern | F98: Nein | G98: Ja
A99: 1170 | B99: Wien | C99: W | D99: PLZ-Adressierung | E99: extern | F99: Ja | G99: Ja
A100: 1171 | B100: Wien Postfach | C100: W | D100: PLZ-Postfach | E100: extern | F100: Nein | G100: Ja
A101: 1172 | B101: Wien | C101: W | D101: PLZ-Postfach | E101: extern | F101: Nein | G101: Ja
A102: 1173 | B102: Wien | C102: W | D102: PLZ-Postfach | E102: extern | F102: Nein | G102: Ja
A103: 1180 | B103: Wien | C103: W | D103: PLZ-Adressierung | E103: extern | F103: Ja | G103: Ja
A104: 1181 | B104: Wien Postfach | C104: W | D104: PLZ-Postfach | E104: extern | F104: Nein | G104: Ja
A105: 1182 | B105: Wien | C105: W | D105: PLZ-Postfach | E105: extern | F105: Nein | G105: Ja
A106: 1183 | B106: Wien | C106: W | D106: PLZ-Postfach | E106: extern | F106: Nein | G106: Ja
A107: 1190 | B107: Wien | C107: W | D107: PLZ-Adressierung | E107: extern | F107: Ja | G107: Ja
A108: 1191 | B108: Wien Postfach | C108: W | D108: PLZ-Postfach | E108: extern | F108: Nein | G108: Ja
A109: 1192 | B109: Wien | C109: W | D109: PLZ-Postfach | E109: extern | F109: Nein | G109: Ja
A110: 1193 | B110: Wien | C110: W | D110: PLZ-Postfach | E110: extern | F110: Nein | G110: Ja
A111: 1194 | B111: Wien | C111: W | D111: PLZ-Postfach | E111: extern | F111: Nein | G111: Ja
A112: 1195 | B112: Wien | C112: W | D112: PLZ-Postfach | E112: extern | F112: Nein | G112: Ja
A113: 1196 | B113: Wien | C113: W | D113: PLZ-Postfach | E113: extern | F113: Nein | G113: Ja
A114: 1200 | B114: Wien | C114: W | D114: PLZ-Adressierung | E114: extern | F114: Ja | G114: Ja
A115: 1201 | B115: Wien Postfach | C115: W | D115: PLZ-Postfach | E115: extern | F115: Nein | G115: Ja
A116: 1202 | B116: Wien | C116: W | D116: PLZ-Postfach | E116: extern | F116: Nein | G116: Ja
A117: 1203 | B117: Wien | C117: W | D117: PLZ-Postfach | E117: extern | F117: Nein | G117: Ja
A118: 1204 | B118: Wien | C118: W | D118: PLZ-Postfach | E118: extern | F118: Nein | G118: Ja
A119: 1205 | B119: Wien | C119: W | D119: PLZ-Postfach | E119: extern | F119: Nein | G119: Ja
A120: 1206 | B120: Wien | C120: W | D120: PLZ-Postfach | E120: extern | F120: Nein | G120: Ja
A121: 1210 | B121: Wien | C121: W | D121: PLZ-Adressierung | E121: extern | F121: Ja | G121: Ja
A122: 1211 | B122: Wien Postfach | C122: W | D122: PLZ-Postfach | E122: extern | F122: Nein | G122: Ja
A123: 1212 | B123: Wien | C123: W | D123: PLZ-Postfach | E123: extern | F123: Nein | G123: Ja
A124: 1213 | B124: Wien | C124: W | D124: PLZ-Postfach | E124: extern | F124: Nein | G124: Ja
A125: 1214 | B125: Wien | C125: W | D125: PLZ-Postfach | E125: extern | F125: Nein | G125: Ja
A126: 1215 | B126: Wien | C126: W | D126: PLZ-Postfach | E126: extern | F126: Nein | G126: Ja
A127: 1216 | B127: Wien | C127: W | D127: PLZ-Postfach | E127: extern | F127: Nein | G127: Ja
A128: 1217 | B128: Wien | C128: W | D128: PLZ-Postfach | E128: extern | F128: Nein | G128: Ja
A129: 1218 | B129: Wien | C129: W | D129: PLZ-Postfach | E129: extern | F129: Nein | G129: Ja
A130: 1220 | B130: Wien | C130: W | D130: PLZ-Adressierung | E130: extern | F130: Ja | G130: Ja
A131: 1221 | B131: Wien Postfach | C131: W | D131: PLZ-Postfach | E131: extern | F131: Nein | G131: Ja
A132: 1222 | B132: Wien | C132: W | D132: PLZ-Postfach | E132: extern | F132: Nein | G132: Ja
A133: 1223 | B133: Wien | C133: W | D133: PLZ-Postfach | E133: extern | F133: Nein | G133: Ja
A134: 1224 | B134: Wien | C134: W | D134: PLZ-Postfach | E134: extern | F134: Nein | G134: Ja
A135: 1225 | B135: Wien | C135: W | D135: PLZ-Postfach | E135: extern | F135: Nein | G135: Ja
A136: 1226 | B136: Wien | C136: W | D136: PLZ-Postfach | E136: extern | F136: Nein | G136: Ja
A137: 1228 | B137: Wien | C137: W | D137: PLZ-Postfach | E137: extern | F137: Nein | G137: Ja
A138: 1229 | B138: Wien | C138: W | D138: PLZ-Postfach | E138: extern | F138: Nein | G138: Ja
A139: 1230 | B139: Wien | C139: W | D139: PLZ-Adressierung | E139: extern | F139: Ja | G139: Ja
A140: 1231 | B140: Wien Postfach | C140: W | D140: PLZ-Postfach | E140: extern | F140: Nein | G140: Ja
A141: 1232 | B141: Wien | C141: W | D141: PLZ-Postfach | E141: extern | F141: Nein | G141: Ja
A142: 1233 | B142: Wien | C142: W | D142: PLZ-Postfach | E142: extern | F142: Nein | G142: Ja
A143: 1234 | B143: Wien | C143: W | D143: PLZ-Postfach | E143: extern | F143: Nein | G143: Ja
A144: 1235 | B144: Wien | C144: W | D144: PLZ-Postfach | E144: extern | F144: Nein | G144: Ja
A145: 1236 | B145: Wien | C145: W | D145: PLZ-Postfach | E145: extern | F145: Nein | G145: Ja
A146: 1238 | B146: Wien | C146: W | D146: PLZ-Postfach | E146: extern | F146: Nein | G146: Ja
A147: 1239 | B147: Wien | C147: W | D147: PLZ-Postfach | E147: extern | F147: Nein | G147: Ja
A148: 1300 | B148: Wien-Flughafen | C148: W | D148: PLZ-Adressierung | E148: extern | F148: Ja | G148: Ja
A149: 1400 | B149: Wien-Vereinte Nationen | C149: W | D149: PLZ-Postfach | E149: extern | F149: Nein | G149: Ja
A150: 1402 | B150: Wien | C150: W | D150: PLZ-Postfach | E150: extern | F150: Nein | G150: Ja
A151: 1423 | B151: Wien | C151: W | D151: PLZ-Postfach | E151: extern | F151: Nein | G151: Ja
A152: 1500 | B152: UNDOF AUSBATT | C152: W | D152: FeldPLZ | E152: extern | F152: Nein | G152: Ja
A153: 1502 | B153: AUCON EUFOR | C153: W | D153: FeldPLZ | E153: extern | F153: Nein | G153: Ja
A154: 1503 | B154: AUCON KFOR | C154: W | D154: FeldPLZ | E154: extern | F154: Nein | G154: Ja
A155: 1600 | B155: Wien | C155: W | D155: InteressentenPLZ | E155: extern | F155: Nein | G155: Ja
A156: 2000 | B156: Stockerau | C156: N | D156: PLZ-Adressierung | E156: extern | F156: Ja | G156: Ja
A157: 2002 | B157: Großmugl | C157: N | D157: PLZ-Adressierung | E157: extern | F157: Ja | G157: Nein
A158: 2003 | B158: Leitzersdorf | C158: N | D158: PLZ-Adressierung | E158: extern | F158: Ja | G158: Nein
A159: 2004 | B159: Niederhollabrunn | C159: N | D159: PLZ-Adressierung | E159: extern | F159: Ja | G159: Nein
A160: 2011 | B160: Sierndorf | C160: N | D160: PLZ-Adressierung | E160: extern | F160: Ja | G160: Nein
A161: 2013 | B161: Göllersdorf | C161: N | D161: PLZ-Adressierung | E161: extern | F161: Ja | G161: Nein
A162: 2014 | B162: Breitenwaida | C162: N | D162: PLZ-Adressierung | E162: extern | F162: Ja | G162: Nein
A163: 2020 | B163: Hollabrunn | C163: N | D163: PLZ-Adressierung | E163: extern | F163: Ja | G163: Ja
A164: 2022 | B164: Immendorf | C164: N | D164: PLZ-Adressierung | E164: extern | F164: Ja | G164: Nein
A165: 2023 | B165: Nappersdorf | C165: N | D165: PLZ-Adressierung | E165: extern | F165: Ja | G165: Ja
A166: 2024 | B166: Mailberg | C166: N | D166: PLZ-Adressierung | E166: extern | F166: Ja | G166: Nein
A167: 2031 | B167: Eggendorf im Thale | C167: N | D167: PLZ-Adressierung | E167: extern | F167: Ja | G167: Nein
A168: 2032 | B168: Enzersdorf im Thale | C168: N | D168: PLZ-Adressierung | E168: extern | F168: Ja | G168: Nein
A169: 2033 | B169: Kammersdorf | C169: N | D169: PLZ-Adressierung | E169: extern | F169: Ja | G169: Nein
A170: 2034 | B170: Großharras | C170: N | D170: PLZ-Adressierung | E170: extern | F170: Ja | G170: Ja
A171: 2041 | B171: Wullersdorf | C171: N | D171: PLZ-Adressierung | E171: extern | F171: Ja | G171: Ja
A172: 2042 | B172: Guntersdorf | C172: N | D172: PLZ-Adressierung | E172: extern | F172: Ja | G172: Nein
A173: 2051 | B173: Zellerndorf | C173: N | D173: PLZ-Adressierung | E173: extern | F173: Ja | G173: Ja
A174: 2052 | B174: Pernersdorf-Pfaffendorf | C174: N | D174: PLZ-Adressierung | E174: extern | F174: Ja | G174: Nein
A175: 2053 | B175: Jetzelsdorf | C175: N | D175: PLZ-Adressierung | E175: extern | F175: Ja | G175: Nein
A176: 2054 | B176: Haugsdorf | C176: N | D176: PLZ-Adressierung | E176: extern | F176: Ja | G176: Ja
A177: 2061 | B177: Hadres | C177: N | D177: PLZ-Adressierung | E177: extern | F177: Ja | G177: Ja
A178: 2062 | B178: Seefeld-Großkadolz | C178: N | D178: PLZ-Adressierung | E178: extern | F178: Ja | G178: Nein
A179: 2063 | B179: Zwingendorf | C179: N | D179: PLZ-Adressierung | E179: extern | F179: Ja | G179: Nein
A180: 2064 | B180: Wulzeshofen | C180: N | D180: PLZ-Adressierung | E180: extern | F180: Ja | G180: Nein
A181: 2070 | B181: Retz | C181: N | D181: PLZ-Adressierung | E181: extern | F181: Ja | G181: Ja
A182: 2073 | B182: Schrattenthal | C182: N | D182: PLZ-Adressierung | E182: extern | F182: Ja | G182: Nein
A183: 2074 | B183: Unterretzbach | C183: N | D183: PLZ-Adressierung | E183: extern | F183: Ja | G183: Nein
A184: 2081 | B184: Niederfladnitz | C184: N | D184: PLZ-Adressierung | E184: extern | F184: Ja | G184: Nein
A185: 2082 | B185: Hardegg | C185: N | D185: PLZ-Adressierung | E185: extern | F185: Ja | G185: Nein
A186: 2083 | B186: Pleißing | C186: N | D186: PLZ-Adressierung | E186: extern | F186: Ja | G186: Nein
A187: 2084 | B187: Weitersfeld | C187: N | D187: PLZ-Adressierung | E187: extern | F187: Ja | G187: Ja
A188: 2091 | B188: Langau | C188: N | D188: PLZ-Adressierung | E188: extern | F188: Ja | G188: Nein
A189: 2092 | B189: Riegersburg | C189: N | D189: PLZ-Adressierung | E189: extern | F189: Ja | G189: Nein
A190: 2093 | B190: Geras | C190: N | D190: PLZ-Adressierung | E190: extern | F190: Ja | G190: Ja
A191: 2094 | B191: Zissersdorf | C191: N | D191: PLZ-Adressierung | E191: extern | F191: Ja | G191: Nein
A192: 2095 | B192: Drosendorf | C192: N | D192: PLZ-Adressierung | E192: extern | F192: Ja | G192: Nein
A193: 2100 | B193: Korneuburg | C193: N | D193: PLZ-Adressierung | E193: extern | F193: Ja | G193: Ja
A194: 2102 | B194: Bisamberg | C194: N | D194: PLZ-Adressierung | E194: extern | F194: Ja | G194: Ja
A195: 2103 | B195: Langenzersdorf | C195: N | D195: PLZ-Adressierung | E195: extern | F195: Ja | G195: Ja
A196: 2104 | B196: Spillern | C196: N | D196: PLZ-Adressierung | E196: extern | F196: Ja | G196: Ja
A197: 2105 | B197: Oberrohrbach | C197: N | D197: PLZ-Adressierung | E197: extern | F197: Ja | G197: Nein
A198: 2111 | B198: Rückersdorf-Harmannsdorf | C198: N | D198: PLZ-Adressierung | E198: extern | F198: Ja | G198: Nein
A199: 2112 | B199: Würnitz | C199: N | D199: PLZ-Adressierung | E199: extern | F199: Ja | G199: Nein
A200: 2113 | B200: Karnabrunn | C200: N | D200: PLZ-Adressierung | E200: extern | F200: Ja | G200: Nein
... 2260 more rows
